Workbook

Sheet Bemerkungen_Impressum
B2: Anmerkungen zum Berechnungsprogramm autoDUW
E3: Zur Eingabe
B4: I. | C4: Allgemeines zum Berechnungsprogramm
C5: Mit Hilfe dieses Programms wird der maximaler Pauschalzuschlag der Wärmedurchgangs-koeffizienten von beheizten Gebäuden in Massivbauweise berechnet.
B7: II. | C7: Programmanwendung
C8: Eingaben sind nur in den mit roter Schrift gefüllten Zellen oder über die Bild-Symbole (Icons) möglich. Eine detaillierte Dokumentation des Programmes inklusive Eingabehinweisen ist im "Handbuch zum Berechnungsprogramm" als PDF-Datei beigefügt. Bei Auswahl einzelner Zellen ist ggf. die Kommentierung zu beachten
B10: III. | C10: Haftung
C11: Trotz der Bemühungen um eine hohe Qualität der Datensätze, Berechnungsalgorithmen und weiterführenden Informationen übernimmt der Entwickler und Herausgeber keine Gewähr oder Haftung für die Richtigkeit, Aktualität oder Vollständigkeit der in diesem Programm enthaltenen Inhalte und Informationen. Der Anwender lädt und verwendet die Software auf eigenes Risiko. Der Herausgeber haftet nicht für unrichtige Angaben, Rechenfehler und Schäden jeder Art, die sich aus der Anwendung des Programms ergeben. Die Inhalte entbinden den Nutzer des Programms nicht von der projektbezogenen planerischen Leistung und/oder seiner Pflicht zur Prüfung und Anwendung der einschlägigen Vorschriften.
B13: IV. | C13: Softwarevoraussetzungen
C14: Das Berechnungsprogramm liegt als Microsoft-Excel® 2003-Blatt vor. Zur Nutzung wird das Programm Microsoft-Excel® 2003 oder eine aktuellere Version benötigt. Das Programm setzt die Aktivierung und Nutzung von Makros voraus.
B16: V. | C16: Impressum
C17: Herausgeber, Konzept, Gestaltung, Programmierung
C18: Univ.-Prof. Dr.-Ing. habil. Wolfgang M. Willems, Dipl.-Ing. Georg Hellinger, Lehrstuhl Bauphysik und technische Gebäudeausrüstung, TU Dortmund, http://www.bauwesen.tu-dortmund.de/tga/

Sheet DUWB-Zuschlag
B1: Ergebnis
B2: Maximaler Pauschalzuschlag der Wärmedurchgangskoeffizienten
B3: DUWB = | I3: =N119+(G7-N117)*(O119-N119)/(O117-N117) -> 0.015 | J3: W/(m²K)
B4: ="Bei weiterer Optimierung der Wärmebrücken ist eine Reduzierung des Wertes auf "&ROUND(N118+(G7-N117)*(O118-N118)/(O117-N117),3)&" W/(m²K) möglich." -> Bei weiterer Optimierung der Wärmebrücken ist eine Reduzierung des Wertes auf 0,004 W/(m²K) möglich.
B6: Konfiguration Seite 1
B7: Beheizte Wohnfläche | G7: 264 | H7: m²
B9: Dämm-Niveau | G9: EnEV | I9: Erläuterung
B12: Fensterflächenanteil | G12: 10%
B14: Konstruktionsart | E14: Einschalige Außenwand mit WDVS
B19: Einschalige Außenwand mit WDVS | E19: Zweischalige Außenwand mit Kerndämmung | H19: Monolitische Außenwand
B21: Balkon-Ausführung | G21: Ohne Balkon
H22: Gewählt:
H23: =G21 -> Ohne Balkon
B27: mit Balkon | E27: ohne Balkon
B29: Sturz-Ausführung | G29: mit RK
H30: Gewählt:
H31: =IF(G29="mit RK","Mit Rollladenkasten","Ohne Rollladenkasten") -> Mit Rollladenkasten
B35: mit Rollladenkasten | E35: ohne Rollladenkasten
B41: Konfiguration Seite 2
B42: Fensterposition | I42: Wand | J42: =IF($E$14="Monolitische Außenwand","Dämm",$I$42) -> Wand
H43: Gewählt:
H44: =IF(J42="Wand","Lage in Wandebene","Lage in Dämmebene") -> Lage in Wandebene
B48: in Wandebene | E48: in Dämmebene
B50: Lage der Dämmung im unteren Gebäudeabschluss | H50: Außen
H51: Gewählt:
H52: =IF(H50="Innen","Innenseitige Lage","Außenseitige Lage") -> Außenseitige Lage
B56: innenseitig | E56: außenseitig
B58: Kimmstein-Anordnung | G58: Ohne Kimmstein
H59: Gewählt:
H60: =G58 -> Ohne Kimmstein
B64: ohne Kimmstein | E64: mit Kimmstein
B66: Temperierung des Dachgeschosses | G66: beheizt
H67: Gewählt:
H68: =G66 -> beheizt
B72: beheizt | E72: unbeheizt
B77: Konfiguration Seite 3
B78: Unterkellerung | I78: unterkellert
H79: Gewählt:
H80: =IF(G7>2500,"unterkellert",I78) -> unterkellert
B84: unterkellert | E84: nicht unterkellert
B86: Temperierung des Kellergeschosses | I86: beheizt | J86: =IF(H80="nicht unterkellert","",I86) -> beheizt
H87: Gewählt:
H88: =J86 -> beheizt
B92: beheizt | E92: unbeheizt
B94: Gründungsart | I94: Flachgründung
H95: Gewählt:
H96: =IF(H80="nicht unterkellert",I94,IF(H88="beheizt",I94,"")) -> Flachgründung
B100: Flachgründung | E100: Streifengründung
L104: beheizte Wohnfläche [m²]
L105: 50.0 | M105: =IF(AND(G$7>=L105,$G$7<=L106)=TRUE,1,IF(M104=1,2,)) -> 0 | N105: =IF(M105=1,L105,) -> 0 | O105: =IF(M105=2,L105,) -> 0
L106: 150.0 | M106: =IF(AND(G$7>L106,$G$7<=L107)=TRUE,1,IF(M105=1,2,)) -> 0 | N106: =IF(M106=1,L106,) -> 0 | O106: =IF(M106=2,L106,) -> 0
L107: 250.0 | M107: 1 | N107: 250 | O107: 0
L108: 500.0 | M108: 2 | N108: 0 | O108: 500
L109: 750.0 | M109: 0 | N109: 0 | O109: 0
L110: 1,000.0 | M110: 0 | N110: 0 | O110: 0
L111: 2,500.0 | M111: 0 | N111: 0 | O111: 0
L112: 5,000.0 | M112: 0 | N112: 0 | O112: 0
L113: 7,500.0 | M113: 0 | N113: 0 | O113: 0
L114: 10,000.0 | M114: 0 | N114: 0 | O114: 0
L115: 15,000.0 | M115: 0 | N115: 0 | O115: 0
L116: 20,000.0 | M116: 0 | N116: 0 | O116: 0
N117: =SUM(N105:N116) -> 250 | O117: =SUM(O105:O116) -> 500
N118: =Daten!$T$16 -> 0.004 | O118: =Daten!$T$17 -> 0.008
N119: =Daten!$U$16 -> 0.014 | O119: =Daten!$U$17 -> 0.018

Sheet Daten
B2: Konstruktionsart: | C2: ='DUWB-Zuschlag'!E14 -> Einschalige Außenwand mit WDVS
B3: Beheizte Wohnfläche: | C3: ='DUWB-Zuschlag'!N117 -> 250
C4: ='DUWB-Zuschlag'!O117 -> 500
B5: Fensterflächenanteil: | C5: ='DUWB-Zuschlag'!G12 -> 10%
B6: Sturz-Ausführung: | C6: ='DUWB-Zuschlag'!G29 -> mit RK
B7: Lage der Dämmung bzgl. der beh. Hüllfläche: | C7: ='DUWB-Zuschlag'!H50 -> Außen
B8: Kimmstein-Anordnung: | C8: ='DUWB-Zuschlag'!G58 -> Ohne Kimmstein
B9: Balkonausführung: | C9: ='DUWB-Zuschlag'!G21 -> Ohne Balkon
B10: Fensterlage: | C10: ='DUWB-Zuschlag'!J42 -> Wand
B11: Dämm-Niveau: | C11: ='DUWB-Zuschlag'!G9 -> EnEV
B12: Temperierung des Dachgeschosses: | C12: ='DUWB-Zuschlag'!G66 -> beheizt
B13: Unterkellerung | C13: ='DUWB-Zuschlag'!H80 -> unterkellert
B14: Temperierung des Kellergeschosses | C14: ='DUWB-Zuschlag'!H88 -> beheizt
B15: Gründungsart: | C15: ='DUWB-Zuschlag'!H96 -> Flachgründung
F16: =$C$2 -> Einschalige Außenwand mit WDVS | G16: =$C$11 -> EnEV | H16: =C3 -> 250 | I16: =$C$13 -> unterkellert | J16: =$C$14 -> beheizt | K16: =$C$15 -> Flachgründung | L16: =$C$7 -> Außen | M16: =$C$8 -> Ohne Kimmstein | N16: =$C$5 -> 10% | O16: =$C$12 -> beheizt | P16: =$C$10 -> Wand | Q16: =$C$6 -> mit RK | R16: =$C$9 -> Ohne Balkon | S16: =CONCATENATE(F16,"-",G16,"-",H16,"-",I16,"-",J16,"-",K16,"-",L16,"-",M16,"-",N16,"-",O16,"-",P16,"-",Q16,"-",R16) -> Einschalige Außenwand mit WDVS-EnEV-250-unterkellert-beheizt-Flachgründung-Außen-Ohne Kimmstein-0,1-beheizt-Wand-mit RK-Ohne Balkon | T16: =VLOOKUP(S16,$S$22:$U$407061,2,FALSE) -> 0.004 | U16: =VLOOKUP(S16,$S$22:$U$407061,3,FALSE) -> 0.014 | V16: =VLOOKUP(S16,$S$22:$V$407061,4,FALSE) -> 10,086
F17: =$C$2 -> Einschalige Außenwand mit WDVS | G17: =$C$11 -> EnEV | H17: =C4 -> 500 | I17: =$C$13 -> unterkellert | J17: =$C$14 -> beheizt | K17: =$C$15 -> Flachgründung | L17: =$C$7 -> Außen | M17: =$C$8 -> Ohne Kimmstein | N17: =$C$5 -> 10% | O17: =$C$12 -> beheizt | P17: =$C$10 -> Wand | Q17: =$C$6 -> mit RK | R17: =$C$9 -> Ohne Balkon | S17: =CONCATENATE(F17,"-",G17,"-",H17,"-",I17,"-",J17,"-",K17,"-",L17,"-",M17,"-",N17,"-",O17,"-",P17,"-",Q17,"-",R17) -> Einschalige Außenwand mit WDVS-EnEV-500-unterkellert-beheizt-Flachgründung-Außen-Ohne Kimmstein-0,1-beheizt-Wand-mit RK-Ohne Balkon | T17: =VLOOKUP(S17,$S$22:$U$407061,2,FALSE) -> 0.008 | U17: =VLOOKUP(S17,$S$22:$U$407061,3,FALSE) -> 0.018 | V17: =VLOOKUP(S17,$S$22:$V$407061,4,FALSE) -> 10,886
E19: Nr | F19: Variation
F20: Konst. | G20: Dämmniv | H20: Größe | I20: Keller | L20: Dämmlage Keller | M20: Kim | N20: Fensterflächen | O20: Dachgeschoss | P20: Fensterposition | Q20: Fenstersturz | R20: Balkon | T20: DUWB,0
T21: [W/(m²K)]
E22: 1 | F22: Einschalige Außenwand mit WDVS | G22: Bestand | H22: 50 | I22: unterkellert | J22: beheizt | K22: Flachgründung | L22: Außen | M22: Ohne Kimmstein | N22: 10% | O22: beheizt | P22: Dämm | Q22: mit RK | R22: mit Balkon | S22: =CONCATENATE(F22,"-",G22,"-",H22,"-",I22,"-",J22,"-",K22,"-",L22,"-",M22,"-",N22,"-",O22,"-",P22,"-",Q22,"-",R22) -> Einschalige Außenwand mit WDVS-Bestand-50-unterkellert-beheizt-Flachgründung-Außen-Ohne Kimmstein-0,1-beheizt-Dämm-mit RK-mit Balkon | T22: -0.014 | U22: 0.003 | V22: =E22 -> 1
E23: =1+E22 -> 2 | F23: Einschalige Außenwand mit WDVS | G23: Bestand | H23: 50 | I23: unterkellert | J23: beheizt | K23: Flachgründung | L23: Außen | M23: Ohne Kimmstein | N23: 10% | O23: beheizt | P23: Dämm | Q23: mit RK | R23: ohne Balkon | S23: =CONCATENATE(F23,"-",G23,"-",H23,"-",I23,"-",J23,"-",K23,"-",L23,"-",M23,"-",N23,"-",O23,"-",P23,"-",Q23,"-",R23) -> Einschalige Außenwand mit WDVS-Bestand-50-unterkellert-beheizt-Flachgründung-Außen-Ohne Kimmstein-0,1-beheizt-Dämm-mit RK-ohne Balkon | T23: -0.014 | U23: 0.003 | V23: =E23 -> 2
E24: =1+E23 -> 3 | F24: Einschalige Außenwand mit WDVS | G24: Bestand | H24: 50 | I24: unterkellert | J24: beheizt | K24: Flachgründung | L24: Außen | M24: Ohne Kimmstein | N24: 10% | O24: beheizt | P24: Dämm | Q24: ohne RK | R24: mit Balkon | S24: Einschalige Außenwand mit WDVS-Bestand-50-unterkellert-beheizt-Flachgründung-Außen-Ohne Kimmstein-0,1-beheizt-Dämm-ohne RK-mit Balkon | T24: -0.021 | U24: -0.005 | V24: 3
E25: 4 | F25: Einschalige Außenwand mit WDVS | G25: Bestand | H25: 50 | I25: unterkellert | J25: beheizt | K25: Flachgründung | L25: Außen | M25: Ohne Kimmstein | N25: 10% | O25: beheizt | P25: Dämm | Q25: ohne RK | R25: ohne Balkon | S25: Einschalige Außenwand mit WDVS-Bestand-50-unterkellert-beheizt-Flachgründung-Außen-Ohne Kimmstein-0,1-beheizt-Dämm-ohne RK-ohne Balkon | T25: -0.021 | U25: -0.005 | V25: 4
E26: 5 | F26: Einschalige Außenwand mit WDVS | G26: Bestand | H26: 50 | I26: unterkellert | J26: beheizt | K26: Flachgründung | L26: Außen | M26: Ohne Kimmstein | N26: 10% | O26: beheizt | P26: Wand | Q26: mit RK | R26: mit Balkon | S26: Einschalige Außenwand mit WDVS-Bestand-50-unterkellert-beheizt-Flachgründung-Außen-Ohne Kimmstein-0,1-beheizt-Wand-mit RK-mit Balkon | T26: -0.005 | U26: 0.011 | V26: 5
E27: 6 | F27: Einschalige Außenwand mit WDVS | G27: Bestand | H27: 50 | I27: unterkellert | J27: beheizt | K27: Flachgründung | L27: Außen | M27: Ohne Kimmstein | N27: 10% | O27: beheizt | P27: Wand | Q27: mit RK | R27: ohne Balkon | S27: Einschalige Außenwand mit WDVS-Bestand-50-unterkellert-beheizt-Flachgründung-Außen-Ohne Kimmstein-0,1-beheizt-Wand-mit RK-ohne Balkon | T27: -0.005 | U27: 0.011 | V27: 6
E28: 7 | F28: Einschalige Außenwand mit WDVS | G28: Bestand | H28: 50 | I28: unterkellert | J28: beheizt | K28: Flachgründung | L28: Außen | M28: Ohne Kimmstein | N28: 10% | O28: beheizt | P28: Wand | Q28: ohne RK | R28: mit Balkon | S28: Einschalige Außenwand mit WDVS-Bestand-50-unterkellert-beheizt-Flachgründung-Außen-Ohne Kimmstein-0,1-beheizt-Wand-ohne RK-mit Balkon | T28: -0.015 | U28: 0.002 | V28: 7
E29: 8 | F29: Einschalige Außenwand mit WDVS | G29: Bestand | H29: 50 | I29: unterkellert | J29: beheizt | K29: Flachgründung | L29: Außen | M29: Ohne Kimmstein | N29: 10% | O29: beheizt | P29: Wand | Q29: ohne RK | R29: ohne Balkon | S29: Einschalige Außenwand mit WDVS-Bestand-50-unterkellert-beheizt-Flachgründung-Außen-Ohne Kimmstein-0,1-beheizt-Wand-ohne RK-ohne Balkon | T29: -0.015 | U29: 0.002 | V29: 8
E30: 9 | F30: Einschalige Außenwand mit WDVS | G30: Bestand | H30: 50 | I30: unterkellert | J30: beheizt | K30: Flachgründung | L30: Innen | M30: Ohne Kimmstein | N30: 10% | O30: beheizt | P30: Dämm | Q30: mit RK | R30: mit Balkon | S30: Einschalige Außenwand mit WDVS-Bestand-50-unterkellert-beheizt-Flachgründung-Innen-Ohne Kimmstein-0,1-beheizt-Dämm-mit RK-mit Balkon | T30: 0.042 | U30: 0.059 | V30: 9
E31: 10 | F31: Einschalige Außenwand mit WDVS | G31: Bestand | H31: 50 | I31: unterkellert | J31: beheizt | K31: Flachgründung | L31: Innen | M31: Ohne Kimmstein | N31: 10% | O31: beheizt | P31: Dämm | Q31: mit RK | R31: ohne Balkon | S31: Einschalige Außenwand mit WDVS-Bestand-50-unterkellert-beheizt-Flachgründung-Innen-Ohne Kimmstein-0,1-beheizt-Dämm-mit RK-ohne Balkon | T31: 0.042 | U31: 0.059 | V31: 10
E32: 11 | F32: Einschalige Außenwand mit WDVS | G32: Bestand | H32: 50 | I32: unterkellert | J32: beheizt | K32: Flachgründung | L32: Innen | M32: Ohne Kimmstein | N32: 10% | O32: beheizt | P32: Dämm | Q32: ohne RK | R32: mit Balkon | S32: Einschalige Außenwand mit WDVS-Bestand-50-unterkellert-beheizt-Flachgründung-Innen-Ohne Kimmstein-0,1-beheizt-Dämm-ohne RK-mit Balkon | T32: 0.035 | U32: 0.052 | V32: 11
E33: 12 | F33: Einschalige Außenwand mit WDVS | G33: Bestand | H33: 50 | I33: unterkellert | J33: beheizt | K33: Flachgründung | L33: Innen | M33: Ohne Kimmstein | N33: 10% | O33: beheizt | P33: Dämm | Q33: ohne RK | R33: ohne Balkon | S33: Einschalige Außenwand mit WDVS-Bestand-50-unterkellert-beheizt-Flachgründung-Innen-Ohne Kimmstein-0,1-beheizt-Dämm-ohne RK-ohne Balkon | T33: 0.035 | U33: 0.052 | V33: 12
E34: 13 | F34: Einschalige Außenwand mit WDVS | G34: Bestand | H34: 50 | I34: unterkellert | J34: beheizt | K34: Flachgründung | L34: Innen | M34: Ohne Kimmstein | N34: 10% | O34: beheizt | P34: Wand | Q34: mit RK | R34: mit Balkon | S34: Einschalige Außenwand mit WDVS-Bestand-50-unterkellert-beheizt-Flachgründung-Innen-Ohne Kimmstein-0,1-beheizt-Wand-mit RK-mit Balkon | T34: 0.051 | U34: 0.067 | V34: 13
E35: 14 | F35: Einschalige Außenwand mit WDVS | G35: Bestand | H35: 50 | I35: unterkellert | J35: beheizt | K35: Flachgründung | L35: Innen | M35: Ohne Kimmstein | N35: 10% | O35: beheizt | P35: Wand | Q35: mit RK | R35: ohne Balkon | S35: Einschalige Außenwand mit WDVS-Bestand-50-unterkellert-beheizt-Flachgründung-Innen-Ohne Kimmstein-0,1-beheizt-Wand-mit RK-ohne Balkon | T35: 0.051 | U35: 0.067 | V35: 14
E36: 15 | F36: Einschalige Außenwand mit WDVS | G36: Bestand | H36: 50 | I36: unterkellert | J36: beheizt | K36: Flachgründung | L36: Innen | M36: Ohne Kimmstein | N36: 10% | O36: beheizt | P36: Wand | Q36: ohne RK | R36: mit Balkon | S36: Einschalige Außenwand mit WDVS-Bestand-50-unterkellert-beheizt-Flachgründung-Innen-Ohne Kimmstein-0,1-beheizt-Wand-ohne RK-mit Balkon | T36: 0.041 | U36: 0.058 | V36: 15
E37: 16 | F37: Einschalige Außenwand mit WDVS | G37: Bestand | H37: 50 | I37: unterkellert | J37: beheizt | K37: Flachgründung | L37: Innen | M37: Ohne Kimmstein | N37: 10% | O37: beheizt | P37: Wand | Q37: ohne RK | R37: ohne Balkon | S37: Einschalige Außenwand mit WDVS-Bestand-50-unterkellert-beheizt-Flachgründung-Innen-Ohne Kimmstein-0,1-beheizt-Wand-ohne RK-ohne Balkon | T37: 0.041 | U37: 0.058 | V37: 16
E38: 17 | F38: Einschalige Außenwand mit WDVS | G38: Bestand | H38: 50 | I38: unterkellert | J38: beheizt | K38: Flachgründung | L38: Außen | M38: Ohne Kimmstein | N38: 10% | O38: unbeheizt | P38: Dämm | Q38: mit RK | R38: mit Balkon | S38: Einschalige Außenwand mit WDVS-Bestand-50-unterkellert-beheizt-Flachgründung-Außen-Ohne Kimmstein-0,1-unbeheizt-Dämm-mit RK-mit Balkon | T38: -0.007 | U38: -0.004 | V38: 17
E39: 18 | F39: Einschalige Außenwand mit WDVS | G39: Bestand | H39: 50 | I39: unterkellert | J39: beheizt | K39: Flachgründung | L39: Außen | M39: Ohne Kimmstein | N39: 10% | O39: unbeheizt | P39: Dämm | Q39: mit RK | R39: ohne Balkon | S39: Einschalige Außenwand mit WDVS-Bestand-50-unterkellert-beheizt-Flachgründung-Außen-Ohne Kimmstein-0,1-unbeheizt-Dämm-mit RK-ohne Balkon | T39: -0.007 | U39: -0.004 | V39: 18
E40: 19 | F40: Einschalige Außenwand mit WDVS | G40: Bestand | H40: 50 | I40: unterkellert | J40: beheizt | K40: Flachgründung | L40: Außen | M40: Ohne Kimmstein | N40: 10% | O40: unbeheizt | P40: Dämm | Q40: ohne RK | R40: mit Balkon | S40: Einschalige Außenwand mit WDVS-Bestand-50-unterkellert-beheizt-Flachgründung-Außen-Ohne Kimmstein-0,1-unbeheizt-Dämm-ohne RK-mit Balkon | T40: -0.011 | U40: -0.009 | V40: 19
E41: 20 | F41: Einschalige Außenwand mit WDVS | G41: Bestand | H41: 50 | I41: unterkellert | J41: beheizt | K41: Flachgründung | L41: Außen | M41: Ohne Kimmstein | N41: 10% | O41: unbeheizt | P41: Dämm | Q41: ohne RK | R41: ohne Balkon | S41: Einschalige Außenwand mit WDVS-Bestand-50-unterkellert-beheizt-Flachgründung-Außen-Ohne Kimmstein-0,1-unbeheizt-Dämm-ohne RK-ohne Balkon | T41: -0.011 | U41: -0.009 | V41: 20
E42: 21 | F42: Einschalige Außenwand mit WDVS | G42: Bestand | H42: 50 | I42: unterkellert | J42: beheizt | K42: Flachgründung | L42: Außen | M42: Ohne Kimmstein | N42: 10% | O42: unbeheizt | P42: Wand | Q42: mit RK | R42: mit Balkon | S42: Einschalige Außenwand mit WDVS-Bestand-50-unterkellert-beheizt-Flachgründung-Außen-Ohne Kimmstein-0,1-unbeheizt-Wand-mit RK-mit Balkon | T42: -0.001 | U42: 0.001 | V42: 21
E43: 22 | F43: Einschalige Außenwand mit WDVS | G43: Bestand | H43: 50 | I43: unterkellert | J43: beheizt | K43: Flachgründung | L43: Außen | M43: Ohne Kimmstein | N43: 10% | O43: unbeheizt | P43: Wand | Q43: mit RK | R43: ohne Balkon | S43: Einschalige Außenwand mit WDVS-Bestand-50-unterkellert-beheizt-Flachgründung-Außen-Ohne Kimmstein-0,1-unbeheizt-Wand-mit RK-ohne Balkon | T43: -0.001 | U43: 0.001 | V43: 22
E44: 23 | F44: Einschalige Außenwand mit WDVS | G44: Bestand | H44: 50 | I44: unterkellert | J44: beheizt | K44: Flachgründung | L44: Außen | M44: Ohne Kimmstein | N44: 10% | O44: unbeheizt | P44: Wand | Q44: ohne RK | R44: mit Balkon | S44: Einschalige Außenwand mit WDVS-Bestand-50-unterkellert-beheizt-Flachgründung-Außen-Ohne Kimmstein-0,1-unbeheizt-Wand-ohne RK-mit Balkon | T44: -0.008 | U44: -0.005 | V44: 23
E45: 24 | F45: Einschalige Außenwand mit WDVS | G45: Bestand | H45: 50 | I45: unterkellert | J45: beheizt | K45: Flachgründung | L45: Außen | M45: Ohne Kimmstein | N45: 10% | O45: unbeheizt | P45: Wand | Q45: ohne RK | R45: ohne Balkon | S45: Einschalige Außenwand mit WDVS-Bestand-50-unterkellert-beheizt-Flachgründung-Außen-Ohne Kimmstein-0,1-unbeheizt-Wand-ohne RK-ohne Balkon | T45: -0.008 | U45: -0.005 | V45: 24
E46: 25 | F46: Einschalige Außenwand mit WDVS | G46: Bestand | H46: 50 | I46: unterkellert | J46: beheizt | K46: Flachgründung | L46: Innen | M46: Ohne Kimmstein | N46: 10% | O46: unbeheizt | P46: Dämm | Q46: mit RK | R46: mit Balkon | S46: Einschalige Außenwand mit WDVS-Bestand-50-unterkellert-beheizt-Flachgründung-Innen-Ohne Kimmstein-0,1-unbeheizt-Dämm-mit RK-mit Balkon | T46: 0.052 | U46: 0.055 | V46: 25
E47: 26 | F47: Einschalige Außenwand mit WDVS | G47: Bestand | H47: 50 | I47: unterkellert | J47: beheizt | K47: Flachgründung | L47: Innen | M47: Ohne Kimmstein | N47: 10% | O47: unbeheizt | P47: Dämm | Q47: mit RK | R47: ohne Balkon | S47: Einschalige Außenwand mit WDVS-Bestand-50-unterkellert-beheizt-Flachgründung-Innen-Ohne Kimmstein-0,1-unbeheizt-Dämm-mit RK-ohne Balkon | T47: 0.052 | U47: 0.055 | V47: 26
E48: 27 | F48: Einschalige Außenwand mit WDVS | G48: Bestand | H48: 50 | I48: unterkellert | J48: beheizt | K48: Flachgründung | L48: Innen | M48: Ohne Kimmstein | N48: 10% | O48: unbeheizt | P48: Dämm | Q48: ohne RK | R48: mit Balkon | S48: Einschalige Außenwand mit WDVS-Bestand-50-unterkellert-beheizt-Flachgründung-Innen-Ohne Kimmstein-0,1-unbeheizt-Dämm-ohne RK-mit Balkon | T48: 0.047 | U48: 0.051 | V48: 27
E49: 28 | F49: Einschalige Außenwand mit WDVS | G49: Bestand | H49: 50 | I49: unterkellert | J49: beheizt | K49: Flachgründung | L49: Innen | M49: Ohne Kimmstein | N49: 10% | O49: unbeheizt | P49: Dämm | Q49: ohne RK | R49: ohne Balkon | S49: Einschalige Außenwand mit WDVS-Bestand-50-unterkellert-beheizt-Flachgründung-Innen-Ohne Kimmstein-0,1-unbeheizt-Dämm-ohne RK-ohne Balkon | T49: 0.047 | U49: 0.051 | V49: 28
E50: 29 | F50: Einschalige Außenwand mit WDVS | G50: Bestand | H50: 50 | I50: unterkellert | J50: beheizt | K50: Flachgründung | L50: Innen | M50: Ohne Kimmstein | N50: 10% | O50: unbeheizt | P50: Wand | Q50: mit RK | R50: mit Balkon | S50: Einschalige Außenwand mit WDVS-Bestand-50-unterkellert-beheizt-Flachgründung-Innen-Ohne Kimmstein-0,1-unbeheizt-Wand-mit RK-mit Balkon | T50: 0.057 | U50: 0.060 | V50: 29
E51: 30 | F51: Einschalige Außenwand mit WDVS | G51: Bestand | H51: 50 | I51: unterkellert | J51: beheizt | K51: Flachgründung | L51: Innen | M51: Ohne Kimmstein | N51: 10% | O51: unbeheizt | P51: Wand | Q51: mit RK | R51: ohne Balkon | S51: Einschalige Außenwand mit WDVS-Bestand-50-unterkellert-beheizt-Flachgründung-Innen-Ohne Kimmstein-0,1-unbeheizt-Wand-mit RK-ohne Balkon | T51: 0.057 | U51: 0.060 | V51: 30
E52: 31 | F52: Einschalige Außenwand mit WDVS | G52: Bestand | H52: 50 | I52: unterkellert | J52: beheizt | K52: Flachgründung | L52: Innen | M52: Ohne Kimmstein | N52: 10% | O52: unbeheizt | P52: Wand | Q52: ohne RK | R52: mit Balkon | S52: Einschalige Außenwand mit WDVS-Bestand-50-unterkellert-beheizt-Flachgründung-Innen-Ohne Kimmstein-0,1-unbeheizt-Wand-ohne RK-mit Balkon | T52: 0.050 | U52: 0.054 | V52: 31
E53: 32 | F53: Einschalige Außenwand mit WDVS | G53: Bestand | H53: 50 | I53: unterkellert | J53: beheizt | K53: Flachgründung | L53: Innen | M53: Ohne Kimmstein | N53: 10% | O53: unbeheizt | P53: Wand | Q53: ohne RK | R53: ohne Balkon | S53: Einschalige Außenwand mit WDVS-Bestand-50-unterkellert-beheizt-Flachgründung-Innen-Ohne Kimmstein-0,1-unbeheizt-Wand-ohne RK-ohne Balkon | T53: 0.050 | U53: 0.054 | V53: 32
E54: 33 | F54: Einschalige Außenwand mit WDVS | G54: Bestand | H54: 50 | I54: unterkellert | J54: beheizt | K54: Flachgründung | L54: Außen | M54: Ohne Kimmstein | N54: 20% | O54: beheizt | P54: Dämm | Q54: mit RK | R54: mit Balkon | S54: Einschalige Außenwand mit WDVS-Bestand-50-unterkellert-beheizt-Flachgründung-Außen-Ohne Kimmstein-0,2-beheizt-Dämm-mit RK-mit Balkon | T54: -0.010 | U54: 0.006 | V54: 33
E55: 34 | F55: Einschalige Außenwand mit WDVS | G55: Bestand | H55: 50 | I55: unterkellert | J55: beheizt | K55: Flachgründung | L55: Außen | M55: Ohne Kimmstein | N55: 20% | O55: beheizt | P55: Dämm | Q55: mit RK | R55: ohne Balkon | S55: Einschalige Außenwand mit WDVS-Bestand-50-unterkellert-beheizt-Flachgründung-Außen-Ohne Kimmstein-0,2-beheizt-Dämm-mit RK-ohne Balkon | T55: -0.010 | U55: 0.006 | V55: 34
E56: 35 | F56: Einschalige Außenwand mit WDVS | G56: Bestand | H56: 50 | I56: unterkellert | J56: beheizt | K56: Flachgründung | L56: Außen | M56: Ohne Kimmstein | N56: 20% | O56: beheizt | P56: Dämm | Q56: ohne RK | R56: mit Balkon | S56: Einschalige Außenwand mit WDVS-Bestand-50-unterkellert-beheizt-Flachgründung-Außen-Ohne Kimmstein-0,2-beheizt-Dämm-ohne RK-mit Balkon | T56: -0.022 | U56: -0.005 | V56: 35
E57: 36 | F57: Einschalige Außenwand mit WDVS | G57: Bestand | H57: 50 | I57: unterkellert | J57: beheizt | K57: Flachgründung | L57: Außen | M57: Ohne Kimmstein | N57: 20% | O57: beheizt | P57: Dämm | Q57: ohne RK | R57: ohne Balkon | S57: Einschalige Außenwand mit WDVS-Bestand-50-unterkellert-beheizt-Flachgründung-Außen-Ohne Kimmstein-0,2-beheizt-Dämm-ohne RK-ohne Balkon | T57: -0.022 | U57: -0.005 | V57: 36
E58: 37 | F58: Einschalige Außenwand mit WDVS | G58: Bestand | H58: 50 | I58: unterkellert | J58: beheizt | K58: Flachgründung | L58: Außen | M58: Ohne Kimmstein | N58: 20% | O58: beheizt | P58: Wand | Q58: mit RK | R58: mit Balkon | S58: Einschalige Außenwand mit WDVS-Bestand-50-unterkellert-beheizt-Flachgründung-Außen-Ohne Kimmstein-0,2-beheizt-Wand-mit RK-mit Balkon | T58: 0.004 | U58: 0.020 | V58: 37
E59: 38 | F59: Einschalige Außenwand mit WDVS | G59: Bestand | H59: 50 | I59: unterkellert | J59: beheizt | K59: Flachgründung | L59: Außen | M59: Ohne Kimmstein | N59: 20% | O59: beheizt | P59: Wand | Q59: mit RK | R59: ohne Balkon | S59: Einschalige Außenwand mit WDVS-Bestand-50-unterkellert-beheizt-Flachgründung-Außen-Ohne Kimmstein-0,2-beheizt-Wand-mit RK-ohne Balkon | T59: 0.004 | U59: 0.020 | V59: 38
E60: 39 | F60: Einschalige Außenwand mit WDVS | G60: Bestand | H60: 50 | I60: unterkellert | J60: beheizt | K60: Flachgründung | L60: Außen | M60: Ohne Kimmstein | N60: 20% | O60: beheizt | P60: Wand | Q60: ohne RK | R60: mit Balkon | S60: Einschalige Außenwand mit WDVS-Bestand-50-unterkellert-beheizt-Flachgründung-Außen-Ohne Kimmstein-0,2-beheizt-Wand-ohne RK-mit Balkon | T60: -0.011 | U60: 0.005 | V60: 39
E61: 40 | F61: Einschalige Außenwand mit WDVS | G61: Bestand | H61: 50 | I61: unterkellert | J61: beheizt | K61: Flachgründung | L61: Außen | M61: Ohne Kimmstein | N61: 20% | O61: beheizt | P61: Wand | Q61: ohne RK | R61: ohne Balkon | S61: Einschalige Außenwand mit WDVS-Bestand-50-unterkellert-beheizt-Flachgründung-Außen-Ohne Kimmstein-0,2-beheizt-Wand-ohne RK-ohne Balkon | T61: -0.011 | U61: 0.005 | V61: 40
E62: 41 | F62: Einschalige Außenwand mit WDVS | G62: Bestand | H62: 50 | I62: unterkellert | J62: beheizt | K62: Flachgründung | L62: Innen | M62: Ohne Kimmstein | N62: 20% | O62: beheizt | P62: Dämm | Q62: mit RK | R62: mit Balkon | S62: Einschalige Außenwand mit WDVS-Bestand-50-unterkellert-beheizt-Flachgründung-Innen-Ohne Kimmstein-0,2-beheizt-Dämm-mit RK-mit Balkon | T62: 0.046 | U62: 0.062 | V62: 41
E63: 42 | F63: Einschalige Außenwand mit WDVS | G63: Bestand | H63: 50 | I63: unterkellert | J63: beheizt | K63: Flachgründung | L63: Innen | M63: Ohne Kimmstein | N63: 20% | O63: beheizt | P63: Dämm | Q63: mit RK | R63: ohne Balkon | S63: Einschalige Außenwand mit WDVS-Bestand-50-unterkellert-beheizt-Flachgründung-Innen-Ohne Kimmstein-0,2-beheizt-Dämm-mit RK-ohne Balkon | T63: 0.046 | U63: 0.062 | V63: 42
E64: 43 | F64: Einschalige Außenwand mit WDVS | G64: Bestand | H64: 50 | I64: unterkellert | J64: beheizt | K64: Flachgründung | L64: Innen | M64: Ohne Kimmstein | N64: 20% | O64: beheizt | P64: Dämm | Q64: ohne RK | R64: mit Balkon | S64: Einschalige Außenwand mit WDVS-Bestand-50-unterkellert-beheizt-Flachgründung-Innen-Ohne Kimmstein-0,2-beheizt-Dämm-ohne RK-mit Balkon | T64: 0.034 | U64: 0.050 | V64: 43
E65: 44 | F65: Einschalige Außenwand mit WDVS | G65: Bestand | H65: 50 | I65: unterkellert | J65: beheizt | K65: Flachgründung | L65: Innen | M65: Ohne Kimmstein | N65: 20% | O65: beheizt | P65: Dämm | Q65: ohne RK | R65: ohne Balkon | S65: Einschalige Außenwand mit WDVS-Bestand-50-unterkellert-beheizt-Flachgründung-Innen-Ohne Kimmstein-0,2-beheizt-Dämm-ohne RK-ohne Balkon | T65: 0.034 | U65: 0.050 | V65: 44
E66: 45 | F66: Einschalige Außenwand mit WDVS | G66: Bestand | H66: 50 | I66: unterkellert | J66: beheizt | K66: Flachgründung | L66: Innen | M66: Ohne Kimmstein | N66: 20% | O66: beheizt | P66: Wand | Q66: mit RK | R66: mit Balkon | S66: Einschalige Außenwand mit WDVS-Bestand-50-unterkellert-beheizt-Flachgründung-Innen-Ohne Kimmstein-0,2-beheizt-Wand-mit RK-mit Balkon | T66: 0.060 | U66: 0.076 | V66: 45
E67: 46 | F67: Einschalige Außenwand mit WDVS | G67: Bestand | H67: 50 | I67: unterkellert | J67: beheizt | K67: Flachgründung | L67: Innen | M67: Ohne Kimmstein | N67: 20% | O67: beheizt | P67: Wand | Q67: mit RK | R67: ohne Balkon | S67: Einschalige Außenwand mit WDVS-Bestand-50-unterkellert-beheizt-Flachgründung-Innen-Ohne Kimmstein-0,2-beheizt-Wand-mit RK-ohne Balkon | T67: 0.060 | U67: 0.076 | V67: 46
E68: 47 | F68: Einschalige Außenwand mit WDVS | G68: Bestand | H68: 50 | I68: unterkellert | J68: beheizt | K68: Flachgründung | L68: Innen | M68: Ohne Kimmstein | N68: 20% | O68: beheizt | P68: Wand | Q68: ohne RK | R68: mit Balkon | S68: Einschalige Außenwand mit WDVS-Bestand-50-unterkellert-beheizt-Flachgründung-Innen-Ohne Kimmstein-0,2-beheizt-Wand-ohne RK-mit Balkon | T68: 0.044 | U68: 0.060 | V68: 47
E69: 48 | F69: Einschalige Außenwand mit WDVS | G69: Bestand | H69: 50 | I69: unterkellert | J69: beheizt | K69: Flachgründung | L69: Innen | M69: Ohne Kimmstein | N69: 20% | O69: beheizt | P69: Wand | Q69: ohne RK | R69: ohne Balkon | S69: Einschalige Außenwand mit WDVS-Bestand-50-unterkellert-beheizt-Flachgründung-Innen-Ohne Kimmstein-0,2-beheizt-Wand-ohne RK-ohne Balkon | T69: 0.044 | U69: 0.060 | V69: 48
E70: 49 | F70: Einschalige Außenwand mit WDVS | G70: Bestand | H70: 50 | I70: unterkellert | J70: beheizt | K70: Flachgründung | L70: Außen | M70: Ohne Kimmstein | N70: 20% | O70: unbeheizt | P70: Dämm | Q70: mit RK | R70: mit Balkon | S70: Einschalige Außenwand mit WDVS-Bestand-50-unterkellert-beheizt-Flachgründung-Außen-Ohne Kimmstein-0,2-unbeheizt-Dämm-mit RK-mit Balkon | T70: -0.004 | U70: -0.002 | V70: 49
E71: 50 | F71: Einschalige Außenwand mit WDVS | G71: Bestand | H71: 50 | I71: unterkellert | J71: beheizt | K71: Flachgründung | L71: Außen | M71: Ohne Kimmstein | N71: 20% | O71: unbeheizt | P71: Dämm | Q71: mit RK | R71: ohne Balkon | S71: Einschalige Außenwand mit WDVS-Bestand-50-unterkellert-beheizt-Flachgründung-Außen-Ohne Kimmstein-0,2-unbeheizt-Dämm-mit RK-ohne Balkon | T71: -0.004 | U71: -0.002 | V71: 50
E72: 51 | F72: Einschalige Außenwand mit WDVS | G72: Bestand | H72: 50 | I72: unterkellert | J72: beheizt | K72: Flachgründung | L72: Außen | M72: Ohne Kimmstein | N72: 20% | O72: unbeheizt | P72: Dämm | Q72: ohne RK | R72: mit Balkon | S72: Einschalige Außenwand mit WDVS-Bestand-50-unterkellert-beheizt-Flachgründung-Außen-Ohne Kimmstein-0,2-unbeheizt-Dämm-ohne RK-mit Balkon | T72: -0.012 | U72: -0.009 | V72: 51
E73: 52 | F73: Einschalige Außenwand mit WDVS | G73: Bestand | H73: 50 | I73: unterkellert | J73: beheizt | K73: Flachgründung | L73: Außen | M73: Ohne Kimmstein | N73: 20% | O73: unbeheizt | P73: Dämm | Q73: ohne RK | R73: ohne Balkon | S73: Einschalige Außenwand mit WDVS-Bestand-50-unterkellert-beheizt-Flachgründung-Außen-Ohne Kimmstein-0,2-unbeheizt-Dämm-ohne RK-ohne Balkon | T73: -0.012 | U73: -0.009 | V73: 52
E74: 53 | F74: Einschalige Außenwand mit WDVS | G74: Bestand | H74: 50 | I74: unterkellert | J74: beheizt | K74: Flachgründung | L74: Außen | M74: Ohne Kimmstein | N74: 20% | O74: unbeheizt | P74: Wand | Q74: mit RK | R74: mit Balkon | S74: Einschalige Außenwand mit WDVS-Bestand-50-unterkellert-beheizt-Flachgründung-Außen-Ohne Kimmstein-0,2-unbeheizt-Wand-mit RK-mit Balkon | T74: 0.004 | U74: 0.006 | V74: 53
E75: 54 | F75: Einschalige Außenwand mit WDVS | G75: Bestand | H75: 50 | I75: unterkellert | J75: beheizt | K75: Flachgründung | L75: Außen | M75: Ohne Kimmstein | N75: 20% | O75: unbeheizt | P75: Wand | Q75: mit RK | R75: ohne Balkon | S75: Einschalige Außenwand mit WDVS-Bestand-50-unterkellert-beheizt-Flachgründung-Außen-Ohne Kimmstein-0,2-unbeheizt-Wand-mit RK-ohne Balkon | T75: 0.004 | U75: 0.006 | V75: 54
E76: 55 | F76: Einschalige Außenwand mit WDVS | G76: Bestand | H76: 50 | I76: unterkellert | J76: beheizt | K76: Flachgründung | L76: Außen | M76: Ohne Kimmstein | N76: 20% | O76: unbeheizt | P76: Wand | Q76: ohne RK | R76: mit Balkon | S76: Einschalige Außenwand mit WDVS-Bestand-50-unterkellert-beheizt-Flachgründung-Außen-Ohne Kimmstein-0,2-unbeheizt-Wand-ohne RK-mit Balkon | T76: -0.006 | U76: -0.004 | V76: 55
E77: 56 | F77: Einschalige Außenwand mit WDVS | G77: Bestand | H77: 50 | I77: unterkellert | J77: beheizt | K77: Flachgründung | L77: Außen | M77: Ohne Kimmstein | N77: 20% | O77: unbeheizt | P77: Wand | Q77: ohne RK | R77: ohne Balkon | S77: Einschalige Außenwand mit WDVS-Bestand-50-unterkellert-beheizt-Flachgründung-Außen-Ohne Kimmstein-0,2-unbeheizt-Wand-ohne RK-ohne Balkon | T77: -0.006 | U77: -0.004 | V77: 56
E78: 57 | F78: Einschalige Außenwand mit WDVS | G78: Bestand | H78: 50 | I78: unterkellert | J78: beheizt | K78: Flachgründung | L78: Innen | M78: Ohne Kimmstein | N78: 20% | O78: unbeheizt | P78: Dämm | Q78: mit RK | R78: mit Balkon | S78: Einschalige Außenwand mit WDVS-Bestand-50-unterkellert-beheizt-Flachgründung-Innen-Ohne Kimmstein-0,2-unbeheizt-Dämm-mit RK-mit Balkon | T78: 0.054 | U78: 0.057 | V78: 57
E79: 58 | F79: Einschalige Außenwand mit WDVS | G79: Bestand | H79: 50 | I79: unterkellert | J79: beheizt | K79: Flachgründung | L79: Innen | M79: Ohne Kimmstein | N79: 20% | O79: unbeheizt | P79: Dämm | Q79: mit RK | R79: ohne Balkon | S79: Einschalige Außenwand mit WDVS-Bestand-50-unterkellert-beheizt-Flachgründung-Innen-Ohne Kimmstein-0,2-unbeheizt-Dämm-mit RK-ohne Balkon | T79: 0.054 | U79: 0.057 | V79: 58
E80: 59 | F80: Einschalige Außenwand mit WDVS | G80: Bestand | H80: 50 | I80: unterkellert | J80: beheizt | K80: Flachgründung | L80: Innen | M80: Ohne Kimmstein | N80: 20% | O80: unbeheizt | P80: Dämm | Q80: ohne RK | R80: mit Balkon | S80: Einschalige Außenwand mit WDVS-Bestand-50-unterkellert-beheizt-Flachgründung-Innen-Ohne Kimmstein-0,2-unbeheizt-Dämm-ohne RK-mit Balkon | T80: 0.046 | U80: 0.050 | V80: 59
E81: 60 | F81: Einschalige Außenwand mit WDVS | G81: Bestand | H81: 50 | I81: unterkellert | J81: beheizt | K81: Flachgründung | L81: Innen | M81: Ohne Kimmstein | N81: 20% | O81: unbeheizt | P81: Dämm | Q81: ohne RK | R81: ohne Balkon | S81: Einschalige Außenwand mit WDVS-Bestand-50-unterkellert-beheizt-Flachgründung-Innen-Ohne Kimmstein-0,2-unbeheizt-Dämm-ohne RK-ohne Balkon | T81: 0.046 | U81: 0.050 | V81: 60
E82: 61 | F82: Einschalige Außenwand mit WDVS | G82: Bestand | H82: 50 | I82: unterkellert | J82: beheizt | K82: Flachgründung | L82: Innen | M82: Ohne Kimmstein | N82: 20% | O82: unbeheizt | P82: Wand | Q82: mit RK | R82: mit Balkon | S82: Einschalige Außenwand mit WDVS-Bestand-50-unterkellert-beheizt-Flachgründung-Innen-Ohne Kimmstein-0,2-unbeheizt-Wand-mit RK-mit Balkon | T82: 0.061 | U82: 0.065 | V82: 61
E83: 62 | F83: Einschalige Außenwand mit WDVS | G83: Bestand | H83: 50 | I83: unterkellert | J83: beheizt | K83: Flachgründung | L83: Innen | M83: Ohne Kimmstein | N83: 20% | O83: unbeheizt | P83: Wand | Q83: mit RK | R83: ohne Balkon | S83: Einschalige Außenwand mit WDVS-Bestand-50-unterkellert-beheizt-Flachgründung-Innen-Ohne Kimmstein-0,2-unbeheizt-Wand-mit RK-ohne Balkon | T83: 0.061 | U83: 0.065 | V83: 62
E84: 63 | F84: Einschalige Außenwand mit WDVS | G84: Bestand | H84: 50 | I84: unterkellert | J84: beheizt | K84: Flachgründung | L84: Innen | M84: Ohne Kimmstein | N84: 20% | O84: unbeheizt | P84: Wand | Q84: ohne RK | R84: mit Balkon | S84: Einschalige Außenwand mit WDVS-Bestand-50-unterkellert-beheizt-Flachgründung-Innen-Ohne Kimmstein-0,2-unbeheizt-Wand-ohne RK-mit Balkon | T84: 0.052 | U84: 0.055 | V84: 63
E85: 64 | F85: Einschalige Außenwand mit WDVS | G85: Bestand | H85: 50 | I85: unterkellert | J85: beheizt | K85: Flachgründung | L85: Innen | M85: Ohne Kimmstein | N85: 20% | O85: unbeheizt | P85: Wand | Q85: ohne RK | R85: ohne Balkon | S85: Einschalige Außenwand mit WDVS-Bestand-50-unterkellert-beheizt-Flachgründung-Innen-Ohne Kimmstein-0,2-unbeheizt-Wand-ohne RK-ohne Balkon | T85: 0.052 | U85: 0.055 | V85: 64
E86: 65 | F86: Einschalige Außenwand mit WDVS | G86: Bestand | H86: 50 | I86: unterkellert | J86: beheizt | K86: Flachgründung | L86: Außen | M86: Ohne Kimmstein | N86: 30% | O86: beheizt | P86: Dämm | Q86: mit RK | R86: mit Balkon | S86: Einschalige Außenwand mit WDVS-Bestand-50-unterkellert-beheizt-Flachgründung-Außen-Ohne Kimmstein-0,3-beheizt-Dämm-mit RK-mit Balkon | T86: -0.004 | U86: 0.012 | V86: 65
E87: 66 | F87: Einschalige Außenwand mit WDVS | G87: Bestand | H87: 50 | I87: unterkellert | J87: beheizt | K87: Flachgründung | L87: Außen | M87: Ohne Kimmstein | N87: 30% | O87: beheizt | P87: Dämm | Q87: mit RK | R87: ohne Balkon | S87: =CONCATENATE(F87,"-",G87,"-",H87,"-",I87,"-",J87,"-",K87,"-",L87,"-",M87,"-",N87,"-",O87,"-",P87,"-",Q87,"-",R87) -> Einschalige Außenwand mit WDVS-Bestand-50-unterkellert-beheizt-Flachgründung-Außen-Ohne Kimmstein-0,3-beheizt-Dämm-mit RK-ohne Balkon | T87: -0.004 | U87: 0.012 | V87: =E87 -> 66
E88: =1+E87 -> 67 | F88: Einschalige Außenwand mit WDVS | G88: Bestand | H88: 50 | I88: unterkellert | J88: beheizt | K88: Flachgründung | L88: Außen | M88: Ohne Kimmstein | N88: 30% | O88: beheizt | P88: Dämm | Q88: ohne RK | R88: mit Balkon | S88: Einschalige Außenwand mit WDVS-Bestand-50-unterkellert-beheizt-Flachgründung-Außen-Ohne Kimmstein-0,3-beheizt-Dämm-ohne RK-mit Balkon | T88: -0.021 | U88: -0.005 | V88: 67
E89: 68 | F89: Einschalige Außenwand mit WDVS | G89: Bestand | H89: 50 | I89: unterkellert | J89: beheizt | K89: Flachgründung | L89: Außen | M89: Ohne Kimmstein | N89: 30% | O89: beheizt | P89: Dämm | Q89: ohne RK | R89: ohne Balkon | S89: Einschalige Außenwand mit WDVS-Bestand-50-unterkellert-beheizt-Flachgründung-Außen-Ohne Kimmstein-0,3-beheizt-Dämm-ohne RK-ohne Balkon | T89: -0.021 | U89: -0.005 | V89: 68
E90: 69 | F90: Einschalige Außenwand mit WDVS | G90: Bestand | H90: 50 | I90: unterkellert | J90: beheizt | K90: Flachgründung | L90: Außen | M90: Ohne Kimmstein | N90: 30% | O90: beheizt | P90: Wand | Q90: mit RK | R90: mit Balkon | S90: Einschalige Außenwand mit WDVS-Bestand-50-unterkellert-beheizt-Flachgründung-Außen-Ohne Kimmstein-0,3-beheizt-Wand-mit RK-mit Balkon | T90: 0.009 | U90: 0.025 | V90: 69
E91: 70 | F91: Einschalige Außenwand mit WDVS | G91: Bestand | H91: 50 | I91: unterkellert | J91: beheizt | K91: Flachgründung | L91: Außen | M91: Ohne Kimmstein | N91: 30% | O91: beheizt | P91: Wand | Q91: mit RK | R91: ohne Balkon | S91: Einschalige Außenwand mit WDVS-Bestand-50-unterkellert-beheizt-Flachgründung-Außen-Ohne Kimmstein-0,3-beheizt-Wand-mit RK-ohne Balkon | T91: 0.009 | U91: 0.025 | V91: 70
E92: 71 | F92: Einschalige Außenwand mit WDVS | G92: Bestand | H92: 50 | I92: unterkellert | J92: beheizt | K92: Flachgründung | L92: Außen | M92: Ohne Kimmstein | N92: 30% | O92: beheizt | P92: Wand | Q92: ohne RK | R92: mit Balkon | S92: Einschalige Außenwand mit WDVS-Bestand-50-unterkellert-beheizt-Flachgründung-Außen-Ohne Kimmstein-0,3-beheizt-Wand-ohne RK-mit Balkon | T92: -0.012 | U92: 0.004 | V92: 71
E93: 72 | F93: Einschalige Außenwand mit WDVS | G93: Bestand | H93: 50 | I93: unterkellert | J93: beheizt | K93: Flachgründung | L93: Außen | M93: Ohne Kimmstein | N93: 30% | O93: beheizt | P93: Wand | Q93: ohne RK | R93: ohne Balkon | S93: Einschalige Außenwand mit WDVS-Bestand-50-unterkellert-beheizt-Flachgründung-Außen-Ohne Kimmstein-0,3-beheizt-Wand-ohne RK-ohne Balkon | T93: -0.012 | U93: 0.004 | V93: 72
E94: 73 | F94: Einschalige Außenwand mit WDVS | G94: Bestand | H94: 50 | I94: unterkellert | J94: beheizt | K94: Flachgründung | L94: Innen | M94: Ohne Kimmstein | N94: 30% | O94: beheizt | P94: Dämm | Q94: mit RK | R94: mit Balkon | S94: Einschalige Außenwand mit WDVS-Bestand-50-unterkellert-beheizt-Flachgründung-Innen-Ohne Kimmstein-0,3-beheizt-Dämm-mit RK-mit Balkon | T94: 0.051 | U94: 0.067 | V94: 73
E95: 74 | F95: Einschalige Außenwand mit WDVS | G95: Bestand | H95: 50 | I95: unterkellert | J95: beheizt | K95: Flachgründung | L95: Innen | M95: Ohne Kimmstein | N95: 30% | O95: beheizt | P95: Dämm | Q95: mit RK | R95: ohne Balkon | S95: Einschalige Außenwand mit WDVS-Bestand-50-unterkellert-beheizt-Flachgründung-Innen-Ohne Kimmstein-0,3-beheizt-Dämm-mit RK-ohne Balkon | T95: 0.051 | U95: 0.067 | V95: 74
E96: 75 | F96: Einschalige Außenwand mit WDVS | G96: Bestand | H96: 50 | I96: unterkellert | J96: beheizt | K96: Flachgründung | L96: Innen | M96: Ohne Kimmstein | N96: 30% | O96: beheizt | P96: Dämm | Q96: ohne RK | R96: mit Balkon | S96: Einschalige Außenwand mit WDVS-Bestand-50-unterkellert-beheizt-Flachgründung-Innen-Ohne Kimmstein-0,3-beheizt-Dämm-ohne RK-mit Balkon | T96: 0.034 | U96: 0.051 | V96: 75
E97: 76 | F97: Einschalige Außenwand mit WDVS | G97: Bestand | H97: 50 | I97: unterkellert | J97: beheizt | K97: Flachgründung | L97: Innen | M97: Ohne Kimmstein | N97: 30% | O97: beheizt | P97: Dämm | Q97: ohne RK | R97: ohne Balkon | S97: Einschalige Außenwand mit WDVS-Bestand-50-unterkellert-beheizt-Flachgründung-Innen-Ohne Kimmstein-0,3-beheizt-Dämm-ohne RK-ohne Balkon | T97: 0.034 | U97: 0.051 | V97: 76
E98: 77 | F98: Einschalige Außenwand mit WDVS | G98: Bestand | H98: 50 | I98: unterkellert | J98: beheizt | K98: Flachgründung | L98: Innen | M98: Ohne Kimmstein | N98: 30% | O98: beheizt | P98: Wand | Q98: mit RK | R98: mit Balkon | S98: Einschalige Außenwand mit WDVS-Bestand-50-unterkellert-beheizt-Flachgründung-Innen-Ohne Kimmstein-0,3-beheizt-Wand-mit RK-mit Balkon | T98: 0.065 | U98: 0.081 | V98: 77
E99: 78 | F99: Einschalige Außenwand mit WDVS | G99: Bestand | H99: 50 | I99: unterkellert | J99: beheizt | K99: Flachgründung | L99: Innen | M99: Ohne Kimmstein | N99: 30% | O99: beheizt | P99: Wand | Q99: mit RK | R99: ohne Balkon | S99: Einschalige Außenwand mit WDVS-Bestand-50-unterkellert-beheizt-Flachgründung-Innen-Ohne Kimmstein-0,3-beheizt-Wand-mit RK-ohne Balkon | T99: 0.065 | U99: 0.081 | V99: 78
E100: 79 | F100: Einschalige Außenwand mit WDVS | G100: Bestand | H100: 50 | I100: unterkellert | J100: beheizt | K100: Flachgründung | L100: Innen | M100: Ohne Kimmstein | N100: 30% | O100: beheizt | P100: Wand | Q100: ohne RK | R100: mit Balkon | S100: Einschalige Außenwand mit WDVS-Bestand-50-unterkellert-beheizt-Flachgründung-Innen-Ohne Kimmstein-0,3-beheizt-Wand-ohne RK-mit Balkon | T100: 0.043 | U100: 0.059 | V100: 79
E101: 80 | F101: Einschalige Außenwand mit WDVS | G101: Bestand | H101: 50 | I101: unterkellert | J101: beheizt | K101: Flachgründung | L101: Innen | M101: Ohne Kimmstein | N101: 30% | O101: beheizt | P101: Wand | Q101: ohne RK | R101: ohne Balkon | S101: Einschalige Außenwand mit WDVS-Bestand-50-unterkellert-beheizt-Flachgründung-Innen-Ohne Kimmstein-0,3-beheizt-Wand-ohne RK-ohne Balkon | T101: 0.043 | U101: 0.059 | V101: 80
E102: 81 | F102: Einschalige Außenwand mit WDVS | G102: Bestand | H102: 50 | I102: unterkellert | J102: beheizt | K102: Flachgründung | L102: Außen | M102: Ohne Kimmstein | N102: 30% | O102: unbeheizt | P102: Dämm | Q102: mit RK | R102: mit Balkon | S102: Einschalige Außenwand mit WDVS-Bestand-50-unterkellert-beheizt-Flachgründung-Außen-Ohne Kimmstein-0,3-unbeheizt-Dämm-mit RK-mit Balkon | T102: -0.002 | U102: 0.001 | V102: 81
E103: 82 | F103: Einschalige Außenwand mit WDVS | G103: Bestand | H103: 50 | I103: unterkellert | J103: beheizt | K103: Flachgründung | L103: Außen | M103: Ohne Kimmstein | N103: 30% | O103: unbeheizt | P103: Dämm | Q103: mit RK | R103: ohne Balkon | S103: Einschalige Außenwand mit WDVS-Bestand-50-unterkellert-beheizt-Flachgründung-Außen-Ohne Kimmstein-0,3-unbeheizt-Dämm-mit RK-ohne Balkon | T103: -0.002 | U103: 0.001 | V103: 82
E104: 83 | F104: Einschalige Außenwand mit WDVS | G104: Bestand | H104: 50 | I104: unterkellert | J104: beheizt | K104: Flachgründung | L104: Außen | M104: Ohne Kimmstein | N104: 30% | O104: unbeheizt | P104: Dämm | Q104: ohne RK | R104: mit Balkon | S104: Einschalige Außenwand mit WDVS-Bestand-50-unterkellert-beheizt-Flachgründung-Außen-Ohne Kimmstein-0,3-unbeheizt-Dämm-ohne RK-mit Balkon | T104: -0.012 | U104: -0.010 | V104: 83
E105: 84 | F105: Einschalige Außenwand mit WDVS | G105: Bestand | H105: 50 | I105: unterkellert | J105: beheizt | K105: Flachgründung | L105: Außen | M105: Ohne Kimmstein | N105: 30% | O105: unbeheizt | P105: Dämm | Q105: ohne RK | R105: ohne Balkon | S105: Einschalige Außenwand mit WDVS-Bestand-50-unterkellert-beheizt-Flachgründung-Außen-Ohne Kimmstein-0,3-unbeheizt-Dämm-ohne RK-ohne Balkon | T105: -0.012 | U105: -0.010 | V105: 84
E106: 85 | F106: Einschalige Außenwand mit WDVS | G106: Bestand | H106: 50 | I106: unterkellert | J106: beheizt | K106: Flachgründung | L106: Außen | M106: Ohne Kimmstein | N106: 30% | O106: unbeheizt | P106: Wand | Q106: mit RK | R106: mit Balkon | S106: Einschalige Außenwand mit WDVS-Bestand-50-unterkellert-beheizt-Flachgründung-Außen-Ohne Kimmstein-0,3-unbeheizt-Wand-mit RK-mit Balkon | T106: 0.009 | U106: 0.011 | V106: 85
E107: 86 | F107: Einschalige Außenwand mit WDVS | G107: Bestand | H107: 50 | I107: unterkellert | J107: beheizt | K107: Flachgründung | L107: Außen | M107: Ohne Kimmstein | N107: 30% | O107: unbeheizt | P107: Wand | Q107: mit RK | R107: ohne Balkon | S107: Einschalige Außenwand mit WDVS-Bestand-50-unterkellert-beheizt-Flachgründung-Außen-Ohne Kimmstein-0,3-unbeheizt-Wand-mit RK-ohne Balkon | T107: 0.009 | U107: 0.011 | V107: 86
E108: 87 | F108: Einschalige Außenwand mit WDVS | G108: Bestand | H108: 50 | I108: unterkellert | J108: beheizt | K108: Flachgründung | L108: Außen | M108: Ohne Kimmstein | N108: 30% | O108: unbeheizt | P108: Wand | Q108: ohne RK | R108: mit Balkon | S108: Einschalige Außenwand mit WDVS-Bestand-50-unterkellert-beheizt-Flachgründung-Außen-Ohne Kimmstein-0,3-unbeheizt-Wand-ohne RK-mit Balkon | T108: -0.004 | U108: -0.002 | V108: 87
E109: 88 | F109: Einschalige Außenwand mit WDVS | G109: Bestand | H109: 50 | I109: unterkellert | J109: beheizt | K109: Flachgründung | L109: Außen | M109: Ohne Kimmstein | N109: 30% | O109: unbeheizt | P109: Wand | Q109: ohne RK | R109: ohne Balkon | S109: Einschalige Außenwand mit WDVS-Bestand-50-unterkellert-beheizt-Flachgründung-Außen-Ohne Kimmstein-0,3-unbeheizt-Wand-ohne RK-ohne Balkon | T109: -0.004 | U109: -0.002 | V109: 88
E110: 89 | F110: Einschalige Außenwand mit WDVS | G110: Bestand | H110: 50 | I110: unterkellert | J110: beheizt | K110: Flachgründung | L110: Innen | M110: Ohne Kimmstein | N110: 30% | O110: unbeheizt | P110: Dämm | Q110: mit RK | R110: mit Balkon | S110: Einschalige Außenwand mit WDVS-Bestand-50-unterkellert-beheizt-Flachgründung-Innen-Ohne Kimmstein-0,3-unbeheizt-Dämm-mit RK-mit Balkon | T110: 0.056 | U110: 0.059 | V110: 89
E111: 90 | F111: Einschalige Außenwand mit WDVS | G111: Bestand | H111: 50 | I111: unterkellert | J111: beheizt | K111: Flachgründung | L111: Innen | M111: Ohne Kimmstein | N111: 30% | O111: unbeheizt | P111: Dämm | Q111: mit RK | R111: ohne Balkon | S111: Einschalige Außenwand mit WDVS-Bestand-50-unterkellert-beheizt-Flachgründung-Innen-Ohne Kimmstein-0,3-unbeheizt-Dämm-mit RK-ohne Balkon | T111: 0.056 | U111: 0.059 | V111: 90
E112: 91 | F112: Einschalige Außenwand mit WDVS | G112: Bestand | H112: 50 | I112: unterkellert | J112: beheizt | K112: Flachgründung | L112: Innen | M112: Ohne Kimmstein | N112: 30% | O112: unbeheizt | P112: Dämm | Q112: ohne RK | R112: mit Balkon | S112: Einschalige Außenwand mit WDVS-Bestand-50-unterkellert-beheizt-Flachgründung-Innen-Ohne Kimmstein-0,3-unbeheizt-Dämm-ohne RK-mit Balkon | T112: 0.045 | U112: 0.049 | V112: 91
E113: 92 | F113: Einschalige Außenwand mit WDVS | G113: Bestand | H113: 50 | I113: unterkellert | J113: beheizt | K113: Flachgründung | L113: Innen | M113: Ohne Kimmstein | N113: 30% | O113: unbeheizt | P113: Dämm | Q113: ohne RK | R113: ohne Balkon | S113: Einschalige Außenwand mit WDVS-Bestand-50-unterkellert-beheizt-Flachgründung-Innen-Ohne Kimmstein-0,3-unbeheizt-Dämm-ohne RK-ohne Balkon | T113: 0.045 | U113: 0.049 | V113: 92
E114: 93 | F114: Einschalige Außenwand mit WDVS | G114: Bestand | H114: 50 | I114: unterkellert | J114: beheizt | K114: Flachgründung | L114: Innen | M114: Ohne Kimmstein | N114: 30% | O114: unbeheizt | P114: Wand | Q114: mit RK | R114: mit Balkon | S114: Einschalige Außenwand mit WDVS-Bestand-50-unterkellert-beheizt-Flachgründung-Innen-Ohne Kimmstein-0,3-unbeheizt-Wand-mit RK-mit Balkon | T114: 0.066 | U114: 0.070 | V114: 93
E115: 94 | F115: Einschalige Außenwand mit WDVS | G115: Bestand | H115: 50 | I115: unterkellert | J115: beheizt | K115: Flachgründung | L115: Innen | M115: Ohne Kimmstein | N115: 30% | O115: unbeheizt | P115: Wand | Q115: mit RK | R115: ohne Balkon | S115: Einschalige Außenwand mit WDVS-Bestand-50-unterkellert-beheizt-Flachgründung-Innen-Ohne Kimmstein-0,3-unbeheizt-Wand-mit RK-ohne Balkon | T115: 0.066 | U115: 0.070 | V115: 94
E116: 95 | F116: Einschalige Außenwand mit WDVS | G116: Bestand | H116: 50 | I116: unterkellert | J116: beheizt | K116: Flachgründung | L116: Innen | M116: Ohne Kimmstein | N116: 30% | O116: unbeheizt | P116: Wand | Q116: ohne RK | R116: mit Balkon | S116: Einschalige Außenwand mit WDVS-Bestand-50-unterkellert-beheizt-Flachgründung-Innen-Ohne Kimmstein-0,3-unbeheizt-Wand-ohne RK-mit Balkon | T116: 0.053 | U116: 0.057 | V116: 95
E117: 96 | F117: Einschalige Außenwand mit WDVS | G117: Bestand | H117: 50 | I117: unterkellert | J117: beheizt | K117: Flachgründung | L117: Innen | M117: Ohne Kimmstein | N117: 30% | O117: unbeheizt | P117: Wand | Q117: ohne RK | R117: ohne Balkon | S117: Einschalige Außenwand mit WDVS-Bestand-50-unterkellert-beheizt-Flachgründung-Innen-Ohne Kimmstein-0,3-unbeheizt-Wand-ohne RK-ohne Balkon | T117: 0.053 | U117: 0.057 | V117: 96
E118: 97 | F118: Einschalige Außenwand mit WDVS | G118: Bestand | H118: 50 | I118: unterkellert | J118: beheizt | K118: Flachgründung | L118: Außen | M118: Ohne Kimmstein | N118: 40% | O118: beheizt | P118: Dämm | Q118: mit RK | R118: mit Balkon | S118: Einschalige Außenwand mit WDVS-Bestand-50-unterkellert-beheizt-Flachgründung-Außen-Ohne Kimmstein-0,4-beheizt-Dämm-mit RK-mit Balkon | T118: -0.000 | U118: 0.016 | V118: 97
E119: 98 | F119: Einschalige Außenwand mit WDVS | G119: Bestand | H119: 50 | I119: unterkellert | J119: beheizt | K119: Flachgründung | L119: Außen | M119: Ohne Kimmstein | N119: 40% | O119: beheizt | P119: Dämm | Q119: mit RK | R119: ohne Balkon | S119: Einschalige Außenwand mit WDVS-Bestand-50-unterkellert-beheizt-Flachgründung-Außen-Ohne Kimmstein-0,4-beheizt-Dämm-mit RK-ohne Balkon | T119: -0.000 | U119: 0.016 | V119: 98
E120: 99 | F120: Einschalige Außenwand mit WDVS | G120: Bestand | H120: 50 | I120: unterkellert | J120: beheizt | K120: Flachgründung | L120: Außen | M120: Ohne Kimmstein | N120: 40% | O120: beheizt | P120: Dämm | Q120: ohne RK | R120: mit Balkon | S120: Einschalige Außenwand mit WDVS-Bestand-50-unterkellert-beheizt-Flachgründung-Außen-Ohne Kimmstein-0,4-beheizt-Dämm-ohne RK-mit Balkon | T120: -0.021 | U120: -0.005 | V120: 99
E121: 100 | F121: Einschalige Außenwand mit WDVS | G121: Bestand | H121: 50 | I121: unterkellert | J121: beheizt | K121: Flachgründung | L121: Außen | M121: Ohne Kimmstein | N121: 40% | O121: beheizt | P121: Dämm | Q121: ohne RK | R121: ohne Balkon | S121: Einschalige Außenwand mit WDVS-Bestand-50-unterkellert-beheizt-Flachgründung-Außen-Ohne Kimmstein-0,4-beheizt-Dämm-ohne RK-ohne Balkon | T121: -0.021 | U121: -0.005 | V121: 100
E122: 101 | F122: Einschalige Außenwand mit WDVS | G122: Bestand | H122: 50 | I122: unterkellert | J122: beheizt | K122: Flachgründung | L122: Außen | M122: Ohne Kimmstein | N122: 40% | O122: beheizt | P122: Wand | Q122: mit RK | R122: mit Balkon | S122: Einschalige Außenwand mit WDVS-Bestand-50-unterkellert-beheizt-Flachgründung-Außen-Ohne Kimmstein-0,4-beheizt-Wand-mit RK-mit Balkon | T122: 0.017 | U122: 0.033 | V122: 101
E123: 102 | F123: Einschalige Außenwand mit WDVS | G123: Bestand | H123: 50 | I123: unterkellert | J123: beheizt | K123: Flachgründung | L123: Außen | M123: Ohne Kimmstein | N123: 40% | O123: beheizt | P123: Wand | Q123: mit RK | R123: ohne Balkon | S123: Einschalige Außenwand mit WDVS-Bestand-50-unterkellert-beheizt-Flachgründung-Außen-Ohne Kimmstein-0,4-beheizt-Wand-mit RK-ohne Balkon | T123: 0.017 | U123: 0.033 | V123: 102
E124: 103 | F124: Einschalige Außenwand mit WDVS | G124: Bestand | H124: 50 | I124: unterkellert | J124: beheizt | K124: Flachgründung | L124: Außen | M124: Ohne Kimmstein | N124: 40% | O124: beheizt | P124: Wand | Q124: ohne RK | R124: mit Balkon | S124: Einschalige Außenwand mit WDVS-Bestand-50-unterkellert-beheizt-Flachgründung-Außen-Ohne Kimmstein-0,4-beheizt-Wand-ohne RK-mit Balkon | T124: -0.011 | U124: 0.005 | V124: 103
E125: 104 | F125: Einschalige Außenwand mit WDVS | G125: Bestand | H125: 50 | I125: unterkellert | J125: beheizt | K125: Flachgründung | L125: Außen | M125: Ohne Kimmstein | N125: 40% | O125: beheizt | P125: Wand | Q125: ohne RK | R125: ohne Balkon | S125: Einschalige Außenwand mit WDVS-Bestand-50-unterkellert-beheizt-Flachgründung-Außen-Ohne Kimmstein-0,4-beheizt-Wand-ohne RK-ohne Balkon | T125: -0.011 | U125: 0.005 | V125: 104
E126: 105 | F126: Einschalige Außenwand mit WDVS | G126: Bestand | H126: 50 | I126: unterkellert | J126: beheizt | K126: Flachgründung | L126: Innen | M126: Ohne Kimmstein | N126: 40% | O126: beheizt | P126: Dämm | Q126: mit RK | R126: mit Balkon | S126: Einschalige Außenwand mit WDVS-Bestand-50-unterkellert-beheizt-Flachgründung-Innen-Ohne Kimmstein-0,4-beheizt-Dämm-mit RK-mit Balkon | T126: 0.055 | U126: 0.071 | V126: 105
E127: 106 | F127: Einschalige Außenwand mit WDVS | G127: Bestand | H127: 50 | I127: unterkellert | J127: beheizt | K127: Flachgründung | L127: Innen | M127: Ohne Kimmstein | N127: 40% | O127: beheizt | P127: Dämm | Q127: mit RK | R127: ohne Balkon | S127: Einschalige Außenwand mit WDVS-Bestand-50-unterkellert-beheizt-Flachgründung-Innen-Ohne Kimmstein-0,4-beheizt-Dämm-mit RK-ohne Balkon | T127: 0.055 | U127: 0.071 | V127: 106
E128: 107 | F128: Einschalige Außenwand mit WDVS | G128: Bestand | H128: 50 | I128: unterkellert | J128: beheizt | K128: Flachgründung | L128: Innen | M128: Ohne Kimmstein | N128: 40% | O128: beheizt | P128: Dämm | Q128: ohne RK | R128: mit Balkon | S128: Einschalige Außenwand mit WDVS-Bestand-50-unterkellert-beheizt-Flachgründung-Innen-Ohne Kimmstein-0,4-beheizt-Dämm-ohne RK-mit Balkon | T128: 0.034 | U128: 0.050 | V128: 107
E129: 108 | F129: Einschalige Außenwand mit WDVS | G129: Bestand | H129: 50 | I129: unterkellert | J129: beheizt | K129: Flachgründung | L129: Innen | M129: Ohne Kimmstein | N129: 40% | O129: beheizt | P129: Dämm | Q129: ohne RK | R129: ohne Balkon | S129: Einschalige Außenwand mit WDVS-Bestand-50-unterkellert-beheizt-Flachgründung-Innen-Ohne Kimmstein-0,4-beheizt-Dämm-ohne RK-ohne Balkon | T129: 0.034 | U129: 0.050 | V129: 108
E130: 109 | F130: Einschalige Außenwand mit WDVS | G130: Bestand | H130: 50 | I130: unterkellert | J130: beheizt | K130: Flachgründung | L130: Innen | M130: Ohne Kimmstein | N130: 40% | O130: beheizt | P130: Wand | Q130: mit RK | R130: mit Balkon | S130: Einschalige Außenwand mit WDVS-Bestand-50-unterkellert-beheizt-Flachgründung-Innen-Ohne Kimmstein-0,4-beheizt-Wand-mit RK-mit Balkon | T130: 0.072 | U130: 0.088 | V130: 109
E131: 110 | F131: Einschalige Außenwand mit WDVS | G131: Bestand | H131: 50 | I131: unterkellert | J131: beheizt | K131: Flachgründung | L131: Innen | M131: Ohne Kimmstein | N131: 40% | O131: beheizt | P131: Wand | Q131: mit RK | R131: ohne Balkon | S131: Einschalige Außenwand mit WDVS-Bestand-50-unterkellert-beheizt-Flachgründung-Innen-Ohne Kimmstein-0,4-beheizt-Wand-mit RK-ohne Balkon | T131: 0.072 | U131: 0.088 | V131: 110
E132: 111 | F132: Einschalige Außenwand mit WDVS | G132: Bestand | H132: 50 | I132: unterkellert | J132: beheizt | K132: Flachgründung | L132: Innen | M132: Ohne Kimmstein | N132: 40% | O132: beheizt | P132: Wand | Q132: ohne RK | R132: mit Balkon | S132: Einschalige Außenwand mit WDVS-Bestand-50-unterkellert-beheizt-Flachgründung-Innen-Ohne Kimmstein-0,4-beheizt-Wand-ohne RK-mit Balkon | T132: 0.044 | U132: 0.060 | V132: 111
E133: 112 | F133: Einschalige Außenwand mit WDVS | G133: Bestand | H133: 50 | I133: unterkellert | J133: beheizt | K133: Flachgründung | L133: Innen | M133: Ohne Kimmstein | N133: 40% | O133: beheizt | P133: Wand | Q133: ohne RK | R133: ohne Balkon | S133: Einschalige Außenwand mit WDVS-Bestand-50-unterkellert-beheizt-Flachgründung-Innen-Ohne Kimmstein-0,4-beheizt-Wand-ohne RK-ohne Balkon | T133: 0.044 | U133: 0.060 | V133: 112
E134: 113 | F134: Einschalige Außenwand mit WDVS | G134: Bestand | H134: 50 | I134: unterkellert | J134: beheizt | K134: Flachgründung | L134: Außen | M134: Ohne Kimmstein | N134: 40% | O134: unbeheizt | P134: Dämm | Q134: mit RK | R134: mit Balkon | S134: Einschalige Außenwand mit WDVS-Bestand-50-unterkellert-beheizt-Flachgründung-Außen-Ohne Kimmstein-0,4-unbeheizt-Dämm-mit RK-mit Balkon | T134: 0.001 | U134: 0.003 | V134: 113
E135: 114 | F135: Einschalige Außenwand mit WDVS | G135: Bestand | H135: 50 | I135: unterkellert | J135: beheizt | K135: Flachgründung | L135: Außen | M135: Ohne Kimmstein | N135: 40% | O135: unbeheizt | P135: Dämm | Q135: mit RK | R135: ohne Balkon | S135: Einschalige Außenwand mit WDVS-Bestand-50-unterkellert-beheizt-Flachgründung-Außen-Ohne Kimmstein-0,4-unbeheizt-Dämm-mit RK-ohne Balkon | T135: 0.001 | U135: 0.003 | V135: 114
E136: 115 | F136: Einschalige Außenwand mit WDVS | G136: Bestand | H136: 50 | I136: unterkellert | J136: beheizt | K136: Flachgründung | L136: Außen | M136: Ohne Kimmstein | N136: 40% | O136: unbeheizt | P136: Dämm | Q136: ohne RK | R136: mit Balkon | S136: Einschalige Außenwand mit WDVS-Bestand-50-unterkellert-beheizt-Flachgründung-Außen-Ohne Kimmstein-0,4-unbeheizt-Dämm-ohne RK-mit Balkon | T136: -0.012 | U136: -0.010 | V136: 115
E137: 116 | F137: Einschalige Außenwand mit WDVS | G137: Bestand | H137: 50 | I137: unterkellert | J137: beheizt | K137: Flachgründung | L137: Außen | M137: Ohne Kimmstein | N137: 40% | O137: unbeheizt | P137: Dämm | Q137: ohne RK | R137: ohne Balkon | S137: Einschalige Außenwand mit WDVS-Bestand-50-unterkellert-beheizt-Flachgründung-Außen-Ohne Kimmstein-0,4-unbeheizt-Dämm-ohne RK-ohne Balkon | T137: -0.012 | U137: -0.010 | V137: 116
E138: 117 | F138: Einschalige Außenwand mit WDVS | G138: Bestand | H138: 50 | I138: unterkellert | J138: beheizt | K138: Flachgründung | L138: Außen | M138: Ohne Kimmstein | N138: 40% | O138: unbeheizt | P138: Wand | Q138: mit RK | R138: mit Balkon | S138: Einschalige Außenwand mit WDVS-Bestand-50-unterkellert-beheizt-Flachgründung-Außen-Ohne Kimmstein-0,4-unbeheizt-Wand-mit RK-mit Balkon | T138: 0.015 | U138: 0.017 | V138: 117
E139: 118 | F139: Einschalige Außenwand mit WDVS | G139: Bestand | H139: 50 | I139: unterkellert | J139: beheizt | K139: Flachgründung | L139: Außen | M139: Ohne Kimmstein | N139: 40% | O139: unbeheizt | P139: Wand | Q139: mit RK | R139: ohne Balkon | S139: Einschalige Außenwand mit WDVS-Bestand-50-unterkellert-beheizt-Flachgründung-Außen-Ohne Kimmstein-0,4-unbeheizt-Wand-mit RK-ohne Balkon | T139: 0.015 | U139: 0.017 | V139: 118
E140: 119 | F140: Einschalige Außenwand mit WDVS | G140: Bestand | H140: 50 | I140: unterkellert | J140: beheizt | K140: Flachgründung | L140: Außen | M140: Ohne Kimmstein | N140: 40% | O140: unbeheizt | P140: Wand | Q140: ohne RK | R140: mit Balkon | S140: Einschalige Außenwand mit WDVS-Bestand-50-unterkellert-beheizt-Flachgründung-Außen-Ohne Kimmstein-0,4-unbeheizt-Wand-ohne RK-mit Balkon | T140: -0.003 | U140: -0.001 | V140: 119
E141: 120 | F141: Einschalige Außenwand mit WDVS | G141: Bestand | H141: 50 | I141: unterkellert | J141: beheizt | K141: Flachgründung | L141: Außen | M141: Ohne Kimmstein | N141: 40% | O141: unbeheizt | P141: Wand | Q141: ohne RK | R141: ohne Balkon | S141: Einschalige Außenwand mit WDVS-Bestand-50-unterkellert-beheizt-Flachgründung-Außen-Ohne Kimmstein-0,4-unbeheizt-Wand-ohne RK-ohne Balkon | T141: -0.003 | U141: -0.001 | V141: 120
E142: 121 | F142: Einschalige Außenwand mit WDVS | G142: Bestand | H142: 50 | I142: unterkellert | J142: beheizt | K142: Flachgründung | L142: Innen | M142: Ohne Kimmstein | N142: 40% | O142: unbeheizt | P142: Dämm | Q142: mit RK | R142: mit Balkon | S142: Einschalige Außenwand mit WDVS-Bestand-50-unterkellert-beheizt-Flachgründung-Innen-Ohne Kimmstein-0,4-unbeheizt-Dämm-mit RK-mit Balkon | T142: 0.058 | U142: 0.061 | V142: 121
E143: 122 | F143: Einschalige Außenwand mit WDVS | G143: Bestand | H143: 50 | I143: unterkellert | J143: beheizt | K143: Flachgründung | L143: Innen | M143: Ohne Kimmstein | N143: 40% | O143: unbeheizt | P143: Dämm | Q143: mit RK | R143: ohne Balkon | S143: Einschalige Außenwand mit WDVS-Bestand-50-unterkellert-beheizt-Flachgründung-Innen-Ohne Kimmstein-0,4-unbeheizt-Dämm-mit RK-ohne Balkon | T143: 0.058 | U143: 0.061 | V143: 122
E144: 123 | F144: Einschalige Außenwand mit WDVS | G144: Bestand | H144: 50 | I144: unterkellert | J144: beheizt | K144: Flachgründung | L144: Innen | M144: Ohne Kimmstein | N144: 40% | O144: unbeheizt | P144: Dämm | Q144: ohne RK | R144: mit Balkon | S144: Einschalige Außenwand mit WDVS-Bestand-50-unterkellert-beheizt-Flachgründung-Innen-Ohne Kimmstein-0,4-unbeheizt-Dämm-ohne RK-mit Balkon | T144: 0.045 | U144: 0.048 | V144: 123
E145: 124 | F145: Einschalige Außenwand mit WDVS | G145: Bestand | H145: 50 | I145: unterkellert | J145: beheizt | K145: Flachgründung | L145: Innen | M145: Ohne Kimmstein | N145: 40% | O145: unbeheizt | P145: Dämm | Q145: ohne RK | R145: ohne Balkon | S145: Einschalige Außenwand mit WDVS-Bestand-50-unterkellert-beheizt-Flachgründung-Innen-Ohne Kimmstein-0,4-unbeheizt-Dämm-ohne RK-ohne Balkon | T145: 0.045 | U145: 0.048 | V145: 124
E146: 125 | F146: Einschalige Außenwand mit WDVS | G146: Bestand | H146: 50 | I146: unterkellert | J146: beheizt | K146: Flachgründung | L146: Innen | M146: Ohne Kimmstein | N146: 40% | O146: unbeheizt | P146: Wand | Q146: mit RK | R146: mit Balkon | S146: Einschalige Außenwand mit WDVS-Bestand-50-unterkellert-beheizt-Flachgründung-Innen-Ohne Kimmstein-0,4-unbeheizt-Wand-mit RK-mit Balkon | T146: 0.071 | U146: 0.075 | V146: 125
E147: 126 | F147: Einschalige Außenwand mit WDVS | G147: Bestand | H147: 50 | I147: unterkellert | J147: beheizt | K147: Flachgründung | L147: Innen | M147: Ohne Kimmstein | N147: 40% | O147: unbeheizt | P147: Wand | Q147: mit RK | R147: ohne Balkon | S147: Einschalige Außenwand mit WDVS-Bestand-50-unterkellert-beheizt-Flachgründung-Innen-Ohne Kimmstein-0,4-unbeheizt-Wand-mit RK-ohne Balkon | T147: 0.071 | U147: 0.075 | V147: 126
E148: 127 | F148: Einschalige Außenwand mit WDVS | G148: Bestand | H148: 50 | I148: unterkellert | J148: beheizt | K148: Flachgründung | L148: Innen | M148: Ohne Kimmstein | N148: 40% | O148: unbeheizt | P148: Wand | Q148: ohne RK | R148: mit Balkon | S148: Einschalige Außenwand mit WDVS-Bestand-50-unterkellert-beheizt-Flachgründung-Innen-Ohne Kimmstein-0,4-unbeheizt-Wand-ohne RK-mit Balkon | T148: 0.054 | U148: 0.058 | V148: 127
E149: 128 | F149: Einschalige Außenwand mit WDVS | G149: Bestand | H149: 50 | I149: unterkellert | J149: beheizt | K149: Flachgründung | L149: Innen | M149: Ohne Kimmstein | N149: 40% | O149: unbeheizt | P149: Wand | Q149: ohne RK | R149: ohne Balkon | S149: Einschalige Außenwand mit WDVS-Bestand-50-unterkellert-beheizt-Flachgründung-Innen-Ohne Kimmstein-0,4-unbeheizt-Wand-ohne RK-ohne Balkon | T149: 0.054 | U149: 0.058 | V149: 128
E150: 129 | F150: Einschalige Außenwand mit WDVS | G150: Bestand | H150: 50 | I150: unterkellert | J150: beheizt | K150: Flachgründung | L150: Außen | M150: Ohne Kimmstein | N150: 50% | O150: beheizt | P150: Dämm | Q150: mit RK | R150: mit Balkon | S150: Einschalige Außenwand mit WDVS-Bestand-50-unterkellert-beheizt-Flachgründung-Außen-Ohne Kimmstein-0,5-beheizt-Dämm-mit RK-mit Balkon | T150: -0.001 | U150: 0.015 | V150: 129
E151: 130 | F151: Einschalige Außenwand mit WDVS | G151: Bestand | H151: 50 | I151: unterkellert | J151: beheizt | K151: Flachgründung | L151: Außen | M151: Ohne Kimmstein | N151: 50% | O151: beheizt | P151: Dämm | Q151: mit RK | R151: ohne Balkon | S151: =CONCATENATE(F151,"-",G151,"-",H151,"-",I151,"-",J151,"-",K151,"-",L151,"-",M151,"-",N151,"-",O151,"-",P151,"-",Q151,"-",R151) -> Einschalige Außenwand mit WDVS-Bestand-50-unterkellert-beheizt-Flachgründung-Außen-Ohne Kimmstein-0,5-beheizt-Dämm-mit RK-ohne Balkon | T151: -0.001 | U151: 0.015 | V151: =E151 -> 130
E152: =1+E151 -> 131 | F152: Einschalige Außenwand mit WDVS | G152: Bestand | H152: 50 | I152: unterkellert | J152: beheizt | K152: Flachgründung | L152: Außen | M152: Ohne Kimmstein | N152: 50% | O152: beheizt | P152: Dämm | Q152: ohne RK | R152: mit Balkon | S152: Einschalige Außenwand mit WDVS-Bestand-50-unterkellert-beheizt-Flachgründung-Außen-Ohne Kimmstein-0,5-beheizt-Dämm-ohne RK-mit Balkon | T152: -0.022 | U152: -0.006 | V152: 131
E153: 132 | F153: Einschalige Außenwand mit WDVS | G153: Bestand | H153: 50 | I153: unterkellert | J153: beheizt | K153: Flachgründung | L153: Außen | M153: Ohne Kimmstein | N153: 50% | O153: beheizt | P153: Dämm | Q153: ohne RK | R153: ohne Balkon | S153: Einschalige Außenwand mit WDVS-Bestand-50-unterkellert-beheizt-Flachgründung-Außen-Ohne Kimmstein-0,5-beheizt-Dämm-ohne RK-ohne Balkon | T153: -0.022 | U153: -0.006 | V153: 132
E154: 133 | F154: Einschalige Außenwand mit WDVS | G154: Bestand | H154: 50 | I154: unterkellert | J154: beheizt | K154: Flachgründung | L154: Außen | M154: Ohne Kimmstein | N154: 50% | O154: beheizt | P154: Wand | Q154: mit RK | R154: mit Balkon | S154: Einschalige Außenwand mit WDVS-Bestand-50-unterkellert-beheizt-Flachgründung-Außen-Ohne Kimmstein-0,5-beheizt-Wand-mit RK-mit Balkon | T154: 0.018 | U154: 0.034 | V154: 133
E155: 134 | F155: Einschalige Außenwand mit WDVS | G155: Bestand | H155: 50 | I155: unterkellert | J155: beheizt | K155: Flachgründung | L155: Außen | M155: Ohne Kimmstein | N155: 50% | O155: beheizt | P155: Wand | Q155: mit RK | R155: ohne Balkon | S155: Einschalige Außenwand mit WDVS-Bestand-50-unterkellert-beheizt-Flachgründung-Außen-Ohne Kimmstein-0,5-beheizt-Wand-mit RK-ohne Balkon | T155: 0.018 | U155: 0.034 | V155: 134
E156: 135 | F156: Einschalige Außenwand mit WDVS | G156: Bestand | H156: 50 | I156: unterkellert | J156: beheizt | K156: Flachgründung | L156: Außen | M156: Ohne Kimmstein | N156: 50% | O156: beheizt | P156: Wand | Q156: ohne RK | R156: mit Balkon | S156: Einschalige Außenwand mit WDVS-Bestand-50-unterkellert-beheizt-Flachgründung-Außen-Ohne Kimmstein-0,5-beheizt-Wand-ohne RK-mit Balkon | T156: -0.010 | U156: 0.006 | V156: 135
E157: 136 | F157: Einschalige Außenwand mit WDVS | G157: Bestand | H157: 50 | I157: unterkellert | J157: beheizt | K157: Flachgründung | L157: Außen | M157: Ohne Kimmstein | N157: 50% | O157: beheizt | P157: Wand | Q157: ohne RK | R157: ohne Balkon | S157: Einschalige Außenwand mit WDVS-Bestand-50-unterkellert-beheizt-Flachgründung-Außen-Ohne Kimmstein-0,5-beheizt-Wand-ohne RK-ohne Balkon | T157: -0.010 | U157: 0.006 | V157: 136
E158: 137 | F158: Einschalige Außenwand mit WDVS | G158: Bestand | H158: 50 | I158: unterkellert | J158: beheizt | K158: Flachgründung | L158: Innen | M158: Ohne Kimmstein | N158: 50% | O158: beheizt | P158: Dämm | Q158: mit RK | R158: mit Balkon | S158: Einschalige Außenwand mit WDVS-Bestand-50-unterkellert-beheizt-Flachgründung-Innen-Ohne Kimmstein-0,5-beheizt-Dämm-mit RK-mit Balkon | T158: 0.054 | U158: 0.070 | V158: 137
E159: 138 | F159: Einschalige Außenwand mit WDVS | G159: Bestand | H159: 50 | I159: unterkellert | J159: beheizt | K159: Flachgründung | L159: Innen | M159: Ohne Kimmstein | N159: 50% | O159: beheizt | P159: Dämm | Q159: mit RK | R159: ohne Balkon | S159: Einschalige Außenwand mit WDVS-Bestand-50-unterkellert-beheizt-Flachgründung-Innen-Ohne Kimmstein-0,5-beheizt-Dämm-mit RK-ohne Balkon | T159: 0.054 | U159: 0.070 | V159: 138
E160: 139 | F160: Einschalige Außenwand mit WDVS | G160: Bestand | H160: 50 | I160: unterkellert | J160: beheizt | K160: Flachgründung | L160: Innen | M160: Ohne Kimmstein | N160: 50% | O160: beheizt | P160: Dämm | Q160: ohne RK | R160: mit Balkon | S160: Einschalige Außenwand mit WDVS-Bestand-50-unterkellert-beheizt-Flachgründung-Innen-Ohne Kimmstein-0,5-beheizt-Dämm-ohne RK-mit Balkon | T160: 0.033 | U160: 0.049 | V160: 139
E161: 140 | F161: Einschalige Außenwand mit WDVS | G161: Bestand | H161: 50 | I161: unterkellert | J161: beheizt | K161: Flachgründung | L161: Innen | M161: Ohne Kimmstein | N161: 50% | O161: beheizt | P161: Dämm | Q161: ohne RK | R161: ohne Balkon | S161: Einschalige Außenwand mit WDVS-Bestand-50-unterkellert-beheizt-Flachgründung-Innen-Ohne Kimmstein-0,5-beheizt-Dämm-ohne RK-ohne Balkon | T161: 0.033 | U161: 0.049 | V161: 140
E162: 141 | F162: Einschalige Außenwand mit WDVS | G162: Bestand | H162: 50 | I162: unterkellert | J162: beheizt | K162: Flachgründung | L162: Innen | M162: Ohne Kimmstein | N162: 50% | O162: beheizt | P162: Wand | Q162: mit RK | R162: mit Balkon | S162: Einschalige Außenwand mit WDVS-Bestand-50-unterkellert-beheizt-Flachgründung-Innen-Ohne Kimmstein-0,5-beheizt-Wand-mit RK-mit Balkon | T162: 0.073 | U162: 0.089 | V162: 141
E163: 142 | F163: Einschalige Außenwand mit WDVS | G163: Bestand | H163: 50 | I163: unterkellert | J163: beheizt | K163: Flachgründung | L163: Innen | M163: Ohne Kimmstein | N163: 50% | O163: beheizt | P163: Wand | Q163: mit RK | R163: ohne Balkon | S163: Einschalige Außenwand mit WDVS-Bestand-50-unterkellert-beheizt-Flachgründung-Innen-Ohne Kimmstein-0,5-beheizt-Wand-mit RK-ohne Balkon | T163: 0.073 | U163: 0.089 | V163: 142
E164: 143 | F164: Einschalige Außenwand mit WDVS | G164: Bestand | H164: 50 | I164: unterkellert | J164: beheizt | K164: Flachgründung | L164: Innen | M164: Ohne Kimmstein | N164: 50% | O164: beheizt | P164: Wand | Q164: ohne RK | R164: mit Balkon | S164: Einschalige Außenwand mit WDVS-Bestand-50-unterkellert-beheizt-Flachgründung-Innen-Ohne Kimmstein-0,5-beheizt-Wand-ohne RK-mit Balkon | T164: 0.045 | U164: 0.061 | V164: 143
E165: 144 | F165: Einschalige Außenwand mit WDVS | G165: Bestand | H165: 50 | I165: unterkellert | J165: beheizt | K165: Flachgründung | L165: Innen | M165: Ohne Kimmstein | N165: 50% | O165: beheizt | P165: Wand | Q165: ohne RK | R165: ohne Balkon | S165: Einschalige Außenwand mit WDVS-Bestand-50-unterkellert-beheizt-Flachgründung-Innen-Ohne Kimmstein-0,5-beheizt-Wand-ohne RK-ohne Balkon | T165: 0.045 | U165: 0.061 | V165: 144
E166: 145 | F166: Einschalige Außenwand mit WDVS | G166: Bestand | H166: 50 | I166: unterkellert | J166: beheizt | K166: Flachgründung | L166: Außen | M166: Ohne Kimmstein | N166: 50% | O166: unbeheizt | P166: Dämm | Q166: mit RK | R166: mit Balkon | S166: Einschalige Außenwand mit WDVS-Bestand-50-unterkellert-beheizt-Flachgründung-Außen-Ohne Kimmstein-0,5-unbeheizt-Dämm-mit RK-mit Balkon | T166: 0.004 | U166: 0.006 | V166: 145
E167: 146 | F167: Einschalige Außenwand mit WDVS | G167: Bestand | H167: 50 | I167: unterkellert | J167: beheizt | K167: Flachgründung | L167: Außen | M167: Ohne Kimmstein | N167: 50% | O167: unbeheizt | P167: Dämm | Q167: mit RK | R167: ohne Balkon | S167: Einschalige Außenwand mit WDVS-Bestand-50-unterkellert-beheizt-Flachgründung-Außen-Ohne Kimmstein-0,5-unbeheizt-Dämm-mit RK-ohne Balkon | T167: 0.004 | U167: 0.006 | V167: 146
E168: 147 | F168: Einschalige Außenwand mit WDVS | G168: Bestand | H168: 50 | I168: unterkellert | J168: beheizt | K168: Flachgründung | L168: Außen | M168: Ohne Kimmstein | N168: 50% | O168: unbeheizt | P168: Dämm | Q168: ohne RK | R168: mit Balkon | S168: Einschalige Außenwand mit WDVS-Bestand-50-unterkellert-beheizt-Flachgründung-Außen-Ohne Kimmstein-0,5-unbeheizt-Dämm-ohne RK-mit Balkon | T168: -0.011 | U168: -0.009 | V168: 147
E169: 148 | F169: Einschalige Außenwand mit WDVS | G169: Bestand | H169: 50 | I169: unterkellert | J169: beheizt | K169: Flachgründung | L169: Außen | M169: Ohne Kimmstein | N169: 50% | O169: unbeheizt | P169: Dämm | Q169: ohne RK | R169: ohne Balkon | S169: Einschalige Außenwand mit WDVS-Bestand-50-unterkellert-beheizt-Flachgründung-Außen-Ohne Kimmstein-0,5-unbeheizt-Dämm-ohne RK-ohne Balkon | T169: -0.011 | U169: -0.009 | V169: 148
E170: 149 | F170: Einschalige Außenwand mit WDVS | G170: Bestand | H170: 50 | I170: unterkellert | J170: beheizt | K170: Flachgründung | L170: Außen | M170: Ohne Kimmstein | N170: 50% | O170: unbeheizt | P170: Wand | Q170: mit RK | R170: mit Balkon | S170: Einschalige Außenwand mit WDVS-Bestand-50-unterkellert-beheizt-Flachgründung-Außen-Ohne Kimmstein-0,5-unbeheizt-Wand-mit RK-mit Balkon | T170: 0.015 | U170: 0.018 | V170: 149
E171: 150 | F171: Einschalige Außenwand mit WDVS | G171: Bestand | H171: 50 | I171: unterkellert | J171: beheizt | K171: Flachgründung | L171: Außen | M171: Ohne Kimmstein | N171: 50% | O171: unbeheizt | P171: Wand | Q171: mit RK | R171: ohne Balkon | S171: Einschalige Außenwand mit WDVS-Bestand-50-unterkellert-beheizt-Flachgründung-Außen-Ohne Kimmstein-0,5-unbeheizt-Wand-mit RK-ohne Balkon | T171: 0.015 | U171: 0.018 | V171: 150
E172: 151 | F172: Einschalige Außenwand mit WDVS | G172: Bestand | H172: 50 | I172: unterkellert | J172: beheizt | K172: Flachgründung | L172: Außen | M172: Ohne Kimmstein | N172: 50% | O172: unbeheizt | P172: Wand | Q172: ohne RK | R172: mit Balkon | S172: Einschalige Außenwand mit WDVS-Bestand-50-unterkellert-beheizt-Flachgründung-Außen-Ohne Kimmstein-0,5-unbeheizt-Wand-ohne RK-mit Balkon | T172: -0.005 | U172: -0.003 | V172: 151
E173: 152 | F173: Einschalige Außenwand mit WDVS | G173: Bestand | H173: 50 | I173: unterkellert | J173: beheizt | K173: Flachgründung | L173: Außen | M173: Ohne Kimmstein | N173: 50% | O173: unbeheizt | P173: Wand | Q173: ohne RK | R173: ohne Balkon | S173: Einschalige Außenwand mit WDVS-Bestand-50-unterkellert-beheizt-Flachgründung-Außen-Ohne Kimmstein-0,5-unbeheizt-Wand-ohne RK-ohne Balkon | T173: -0.005 | U173: -0.003 | V173: 152
E174: 153 | F174: Einschalige Außenwand mit WDVS | G174: Bestand | H174: 50 | I174: unterkellert | J174: beheizt | K174: Flachgründung | L174: Innen | M174: Ohne Kimmstein | N174: 50% | O174: unbeheizt | P174: Dämm | Q174: mit RK | R174: mit Balkon | S174: Einschalige Außenwand mit WDVS-Bestand-50-unterkellert-beheizt-Flachgründung-Innen-Ohne Kimmstein-0,5-unbeheizt-Dämm-mit RK-mit Balkon | T174: 0.060 | U174: 0.064 | V174: 153
E175: 154 | F175: Einschalige Außenwand mit WDVS | G175: Bestand | H175: 50 | I175: unterkellert | J175: beheizt | K175: Flachgründung | L175: Innen | M175: Ohne Kimmstein | N175: 50% | O175: unbeheizt | P175: Dämm | Q175: mit RK | R175: ohne Balkon | S175: Einschalige Außenwand mit WDVS-Bestand-50-unterkellert-beheizt-Flachgründung-Innen-Ohne Kimmstein-0,5-unbeheizt-Dämm-mit RK-ohne Balkon | T175: 0.060 | U175: 0.064 | V175: 154
E176: 155 | F176: Einschalige Außenwand mit WDVS | G176: Bestand | H176: 50 | I176: unterkellert | J176: beheizt | K176: Flachgründung | L176: Innen | M176: Ohne Kimmstein | N176: 50% | O176: unbeheizt | P176: Dämm | Q176: ohne RK | R176: mit Balkon | S176: Einschalige Außenwand mit WDVS-Bestand-50-unterkellert-beheizt-Flachgründung-Innen-Ohne Kimmstein-0,5-unbeheizt-Dämm-ohne RK-mit Balkon | T176: 0.045 | U176: 0.049 | V176: 155
E177: 156 | F177: Einschalige Außenwand mit WDVS | G177: Bestand | H177: 50 | I177: unterkellert | J177: beheizt | K177: Flachgründung | L177: Innen | M177: Ohne Kimmstein | N177: 50% | O177: unbeheizt | P177: Dämm | Q177: ohne RK | R177: ohne Balkon | S177: Einschalige Außenwand mit WDVS-Bestand-50-unterkellert-beheizt-Flachgründung-Innen-Ohne Kimmstein-0,5-unbeheizt-Dämm-ohne RK-ohne Balkon | T177: 0.045 | U177: 0.049 | V177: 156
E178: 157 | F178: Einschalige Außenwand mit WDVS | G178: Bestand | H178: 50 | I178: unterkellert | J178: beheizt | K178: Flachgründung | L178: Innen | M178: Ohne Kimmstein | N178: 50% | O178: unbeheizt | P178: Wand | Q178: mit RK | R178: mit Balkon | S178: Einschalige Außenwand mit WDVS-Bestand-50-unterkellert-beheizt-Flachgründung-Innen-Ohne Kimmstein-0,5-unbeheizt-Wand-mit RK-mit Balkon | T178: 0.072 | U178: 0.075 | V178: 157
E179: 158 | F179: Einschalige Außenwand mit WDVS | G179: Bestand | H179: 50 | I179: unterkellert | J179: beheizt | K179: Flachgründung | L179: Innen | M179: Ohne Kimmstein | N179: 50% | O179: unbeheizt | P179: Wand | Q179: mit RK | R179: ohne Balkon | S179: Einschalige Außenwand mit WDVS-Bestand-50-unterkellert-beheizt-Flachgründung-Innen-Ohne Kimmstein-0,5-unbeheizt-Wand-mit RK-ohne Balkon | T179: 0.072 | U179: 0.075 | V179: 158
E180: 159 | F180: Einschalige Außenwand mit WDVS | G180: Bestand | H180: 50 | I180: unterkellert | J180: beheizt | K180: Flachgründung | L180: Innen | M180: Ohne Kimmstein | N180: 50% | O180: unbeheizt | P180: Wand | Q180: ohne RK | R180: mit Balkon | S180: Einschalige Außenwand mit WDVS-Bestand-50-unterkellert-beheizt-Flachgründung-Innen-Ohne Kimmstein-0,5-unbeheizt-Wand-ohne RK-mit Balkon | T180: 0.051 | U180: 0.055 | V180: 159
E181: 160 | F181: Einschalige Außenwand mit WDVS | G181: Bestand | H181: 50 | I181: unterkellert | J181: beheizt | K181: Flachgründung | L181: Innen | M181: Ohne Kimmstein | N181: 50% | O181: unbeheizt | P181: Wand | Q181: ohne RK | R181: ohne Balkon | S181: Einschalige Außenwand mit WDVS-Bestand-50-unterkellert-beheizt-Flachgründung-Innen-Ohne Kimmstein-0,5-unbeheizt-Wand-ohne RK-ohne Balkon | T181: 0.051 | U181: 0.055 | V181: 160
E182: 161 | F182: Einschalige Außenwand mit WDVS | G182: Bestand | H182: 50 | I182: unterkellert | J182: beheizt | K182: Streifengründung | L182: Außen | M182: Ohne Kimmstein | N182: 10% | O182: beheizt | P182: Dämm | Q182: mit RK | R182: mit Balkon | S182: Einschalige Außenwand mit WDVS-Bestand-50-unterkellert-beheizt-Streifengründung-Außen-Ohne Kimmstein-0,1-beheizt-Dämm-mit RK-mit Balkon | T182: 0.013 | U182: 0.041 | V182: 161
E183: 162 | F183: Einschalige Außenwand mit WDVS | G183: Bestand | H183: 50 | I183: unterkellert | J183: beheizt | K183: Streifengründung | L183: Außen | M183: Ohne Kimmstein | N183: 10% | O183: beheizt | P183: Dämm | Q183: mit RK | R183: ohne Balkon | S183: Einschalige Außenwand mit WDVS-Bestand-50-unterkellert-beheizt-Streifengründung-Außen-Ohne Kimmstein-0,1-beheizt-Dämm-mit RK-ohne Balkon | T183: 0.013 | U183: 0.041 | V183: 162
E184: 163 | F184: Einschalige Außenwand mit WDVS | G184: Bestand | H184: 50 | I184: unterkellert | J184: beheizt | K184: Streifengründung | L184: Außen | M184: Ohne Kimmstein | N184: 10% | O184: beheizt | P184: Dämm | Q184: ohne RK | R184: mit Balkon | S184: Einschalige Außenwand mit WDVS-Bestand-50-unterkellert-beheizt-Streifengründung-Außen-Ohne Kimmstein-0,1-beheizt-Dämm-ohne RK-mit Balkon | T184: 0.006 | U184: 0.034 | V184: 163
E185: 164 | F185: Einschalige Außenwand mit WDVS | G185: Bestand | H185: 50 | I185: unterkellert | J185: beheizt | K185: Streifengründung | L185: Außen | M185: Ohne Kimmstein | N185: 10% | O185: beheizt | P185: Dämm | Q185: ohne RK | R185: ohne Balkon | S185: Einschalige Außenwand mit WDVS-Bestand-50-unterkellert-beheizt-Streifengründung-Außen-Ohne Kimmstein-0,1-beheizt-Dämm-ohne RK-ohne Balkon | T185: 0.006 | U185: 0.034 | V185: 164
E186: 165 | F186: Einschalige Außenwand mit WDVS | G186: Bestand | H186: 50 | I186: unterkellert | J186: beheizt | K186: Streifengründung | L186: Außen | M186: Ohne Kimmstein | N186: 10% | O186: beheizt | P186: Wand | Q186: mit RK | R186: mit Balkon | S186: Einschalige Außenwand mit WDVS-Bestand-50-unterkellert-beheizt-Streifengründung-Außen-Ohne Kimmstein-0,1-beheizt-Wand-mit RK-mit Balkon | T186: 0.022 | U186: 0.050 | V186: 165
E187: 166 | F187: Einschalige Außenwand mit WDVS | G187: Bestand | H187: 50 | I187: unterkellert | J187: beheizt | K187: Streifengründung | L187: Außen | M187: Ohne Kimmstein | N187: 10% | O187: beheizt | P187: Wand | Q187: mit RK | R187: ohne Balkon | S187: Einschalige Außenwand mit WDVS-Bestand-50-unterkellert-beheizt-Streifengründung-Außen-Ohne Kimmstein-0,1-beheizt-Wand-mit RK-ohne Balkon | T187: 0.022 | U187: 0.050 | V187: 166
E188: 167 | F188: Einschalige Außenwand mit WDVS | G188: Bestand | H188: 50 | I188: unterkellert | J188: beheizt | K188: Streifengründung | L188: Außen | M188: Ohne Kimmstein | N188: 10% | O188: beheizt | P188: Wand | Q188: ohne RK | R188: mit Balkon | S188: Einschalige Außenwand mit WDVS-Bestand-50-unterkellert-beheizt-Streifengründung-Außen-Ohne Kimmstein-0,1-beheizt-Wand-ohne RK-mit Balkon | T188: 0.012 | U188: 0.040 | V188: 167
E189: 168 | F189: Einschalige Außenwand mit WDVS | G189: Bestand | H189: 50 | I189: unterkellert | J189: beheizt | K189: Streifengründung | L189: Außen | M189: Ohne Kimmstein | N189: 10% | O189: beheizt | P189: Wand | Q189: ohne RK | R189: ohne Balkon | S189: Einschalige Außenwand mit WDVS-Bestand-50-unterkellert-beheizt-Streifengründung-Außen-Ohne Kimmstein-0,1-beheizt-Wand-ohne RK-ohne Balkon | T189: 0.012 | U189: 0.040 | V189: 168
E190: 169 | F190: Einschalige Außenwand mit WDVS | G190: Bestand | H190: 50 | I190: unterkellert | J190: beheizt | K190: Streifengründung | L190: Innen | M190: Ohne Kimmstein | N190: 10% | O190: beheizt | P190: Dämm | Q190: mit RK | R190: mit Balkon | S190: Einschalige Außenwand mit WDVS-Bestand-50-unterkellert-beheizt-Streifengründung-Innen-Ohne Kimmstein-0,1-beheizt-Dämm-mit RK-mit Balkon | T190: 0.042 | U190: 0.058 | V190: 169
E191: 170 | F191: Einschalige Außenwand mit WDVS | G191: Bestand | H191: 50 | I191: unterkellert | J191: beheizt | K191: Streifengründung | L191: Innen | M191: Ohne Kimmstein | N191: 10% | O191: beheizt | P191: Dämm | Q191: mit RK | R191: ohne Balkon | S191: Einschalige Außenwand mit WDVS-Bestand-50-unterkellert-beheizt-Streifengründung-Innen-Ohne Kimmstein-0,1-beheizt-Dämm-mit RK-ohne Balkon | T191: 0.042 | U191: 0.058 | V191: 170
E192: 171 | F192: Einschalige Außenwand mit WDVS | G192: Bestand | H192: 50 | I192: unterkellert | J192: beheizt | K192: Streifengründung | L192: Innen | M192: Ohne Kimmstein | N192: 10% | O192: beheizt | P192: Dämm | Q192: ohne RK | R192: mit Balkon | S192: Einschalige Außenwand mit WDVS-Bestand-50-unterkellert-beheizt-Streifengründung-Innen-Ohne Kimmstein-0,1-beheizt-Dämm-ohne RK-mit Balkon | T192: 0.035 | U192: 0.051 | V192: 171
E193: 172 | F193: Einschalige Außenwand mit WDVS | G193: Bestand | H193: 50 | I193: unterkellert | J193: beheizt | K193: Streifengründung | L193: Innen | M193: Ohne Kimmstein | N193: 10% | O193: beheizt | P193: Dämm | Q193: ohne RK | R193: ohne Balkon | S193: Einschalige Außenwand mit WDVS-Bestand-50-unterkellert-beheizt-Streifengründung-Innen-Ohne Kimmstein-0,1-beheizt-Dämm-ohne RK-ohne Balkon | T193: 0.035 | U193: 0.051 | V193: 172
E194: 173 | F194: Einschalige Außenwand mit WDVS | G194: Bestand | H194: 50 | I194: unterkellert | J194: beheizt | K194: Streifengründung | L194: Innen | M194: Ohne Kimmstein | N194: 10% | O194: beheizt | P194: Wand | Q194: mit RK | R194: mit Balkon | S194: Einschalige Außenwand mit WDVS-Bestand-50-unterkellert-beheizt-Streifengründung-Innen-Ohne Kimmstein-0,1-beheizt-Wand-mit RK-mit Balkon | T194: 0.050 | U194: 0.067 | V194: 173
E195: 174 | F195: Einschalige Außenwand mit WDVS | G195: Bestand | H195: 50 | I195: unterkellert | J195: beheizt | K195: Streifengründung | L195: Innen | M195: Ohne Kimmstein | N195: 10% | O195: beheizt | P195: Wand | Q195: mit RK | R195: ohne Balkon | S195: Einschalige Außenwand mit WDVS-Bestand-50-unterkellert-beheizt-Streifengründung-Innen-Ohne Kimmstein-0,1-beheizt-Wand-mit RK-ohne Balkon | T195: 0.050 | U195: 0.067 | V195: 174
E196: 175 | F196: Einschalige Außenwand mit WDVS | G196: Bestand | H196: 50 | I196: unterkellert | J196: beheizt | K196: Streifengründung | L196: Innen | M196: Ohne Kimmstein | N196: 10% | O196: beheizt | P196: Wand | Q196: ohne RK | R196: mit Balkon | S196: Einschalige Außenwand mit WDVS-Bestand-50-unterkellert-beheizt-Streifengründung-Innen-Ohne Kimmstein-0,1-beheizt-Wand-ohne RK-mit Balkon | T196: 0.041 | U196: 0.057 | V196: 175
E197: 176 | F197: Einschalige Außenwand mit WDVS | G197: Bestand | H197: 50 | I197: unterkellert | J197: beheizt | K197: Streifengründung | L197: Innen | M197: Ohne Kimmstein | N197: 10% | O197: beheizt | P197: Wand | Q197: ohne RK | R197: ohne Balkon | S197: Einschalige Außenwand mit WDVS-Bestand-50-unterkellert-beheizt-Streifengründung-Innen-Ohne Kimmstein-0,1-beheizt-Wand-ohne RK-ohne Balkon | T197: 0.041 | U197: 0.057 | V197: 176
E198: 177 | F198: Einschalige Außenwand mit WDVS | G198: Bestand | H198: 50 | I198: unterkellert | J198: beheizt | K198: Streifengründung | L198: Außen | M198: Ohne Kimmstein | N198: 10% | O198: unbeheizt | P198: Dämm | Q198: mit RK | R198: mit Balkon | S198: Einschalige Außenwand mit WDVS-Bestand-50-unterkellert-beheizt-Streifengründung-Außen-Ohne Kimmstein-0,1-unbeheizt-Dämm-mit RK-mit Balkon | T198: 0.023 | U198: 0.037 | V198: 177
E199: 178 | F199: Einschalige Außenwand mit WDVS | G199: Bestand | H199: 50 | I199: unterkellert | J199: beheizt | K199: Streifengründung | L199: Außen | M199: Ohne Kimmstein | N199: 10% | O199: unbeheizt | P199: Dämm | Q199: mit RK | R199: ohne Balkon | S199: Einschalige Außenwand mit WDVS-Bestand-50-unterkellert-beheizt-Streifengründung-Außen-Ohne Kimmstein-0,1-unbeheizt-Dämm-mit RK-ohne Balkon | T199: 0.023 | U199: 0.037 | V199: 178
E200: 179 | F200: Einschalige Außenwand mit WDVS | G200: Bestand | H200: 50 | I200: unterkellert | J200: beheizt | K200: Streifengründung | L200: Außen | M200: Ohne Kimmstein | N200: 10% | O200: unbeheizt | P200: Dämm | Q200: ohne RK | R200: mit Balkon | S200: Einschalige Außenwand mit WDVS-Bestand-50-unterkellert-beheizt-Streifengründung-Außen-Ohne Kimmstein-0,1-unbeheizt-Dämm-ohne RK-mit Balkon | T200: 0.019 | U200: 0.032 | V200: 179
E201: 180 | F201: Einschalige Außenwand mit WDVS | G201: Bestand | H201: 50 | I201: unterkellert | J201: beheizt | K201: Streifengründung | L201: Außen | M201: Ohne Kimmstein | N201: 10% | O201: unbeheizt | P201: Dämm | Q201: ohne RK | R201: ohne Balkon | S201: Einschalige Außenwand mit WDVS-Bestand-50-unterkellert-beheizt-Streifengründung-Außen-Ohne Kimmstein-0,1-unbeheizt-Dämm-ohne RK-ohne Balkon | T201: 0.019 | U201: 0.032 | V201: 180
E202: 181 | F202: Einschalige Außenwand mit WDVS | G202: Bestand | H202: 50 | I202: unterkellert | J202: beheizt | K202: Streifengründung | L202: Außen | M202: Ohne Kimmstein | N202: 10% | O202: unbeheizt | P202: Wand | Q202: mit RK | R202: mit Balkon | S202: Einschalige Außenwand mit WDVS-Bestand-50-unterkellert-beheizt-Streifengründung-Außen-Ohne Kimmstein-0,1-unbeheizt-Wand-mit RK-mit Balkon | T202: 0.028 | U202: 0.042 | V202: 181
... 4298 more rows

Sheet Erläuterungen
B2: Definition der vier betrachteten Dämm-Niveaus mit Angabe der zugeordneten repräsentativen U-Werte in W/(m²•K)
B3: Regelbauteil | C3: 1 | D3: 2 | E3: 3 | F3: 4 | H3: Zurück zur Eingabe
B4: (mit Index) | C4: Sanierter | D4: EnEV 2009 | E4: EnEV 2009 | F4: EnEV 2009
C5: Bestand | E5: 15% | F5: 32%
B6: Türen der Außenwand | C6: 1.8 | D6: 1.6 | E6: 1.3 | F6: 1.0
B7: Fenster und Fenstertüren der Außenwand | C7: 1.4 | D7: 1.2 | E7: 1.0 | F7: 0.8
B8: Dachflächenfenster
B9: Kellerfenster
B10: Außenwand an Außenluft | C10: 0.31 | D10: 0.26 | E10: 0.21 | F10: 0.15
B11: Wände gegen Erdreich
B12: Dächer, Dachschrägen zu Außenluft | C12: 0.21 | D12: 0.18 | E12: 0.15 | F12: 0.12
B13: Flachdächer an Außenluft
B14: Decken zu unbeheizten Räumen nach oben
B15: Decken zu Außenluft nach unten | C15: 0.35 | D15: 0.25 | E15: 0.20 | F15: 0.15
B16: Decken zu unbeheizten Räumen nach unten | C16: 0.35 | D16: 0.30 | E16: 0.25 | F16: 0.20
B17: Wände gegen unbeheizte Räume
B18: Decken gegen Erdreich (Bodenplatten)
